Workbook

Sheet البيانات
P2: سعر الوجبة | Q2: 40
L3: C:\Users\digital\Desktop\Sample Pictures\صور\5.jpg
A5: رقم العميل | B5: اسم العميل | C5: رقم الحجرة | D5: تاريخ الدخول | E5: تاريخ الخروج | F5: رقم البطاقة او الجواز | G5: تاريخ وجهة الاصدار | H5: المهنة | I5: النوع | J5: الجنسية ومحل الاقامة | K5: عدد الوجبات يوميا | L5: الصورة | M5: عدد الايام | N5: سعر الغرفة | O5: المطلوب | P5: ملاحظات | Q5: قيمة الوجبات | R5: اجمالى المطلوب
A6: 100 | B6: عوض | C6: 20 | D6: 2019-05-01 | E6: 2019-05-03 | F6: 4444 | G6: 17/03/1915 | H6: للببب | I6: يييي | J6: سسس | K6: 3 | M6: =E6-D6 -> 2 | N6: =IFERROR(VLOOKUP(البيانات!C6,'ارقام الغرف واسعارها'!$C$6:$D$105,2,FALSE),"") -> 20 | O6: =IFERROR(M6*N6,"") -> 40 | P6: =IF(M6<=0,"انتهى الميعاد اليوم",IF(M6=0," اانتهى الميعاد اليوم",IF(M6>0,"لم ينتهى المبعاد",""))) -> لم ينتهى المبعاد | Q6: =K6*M6*$Q$2 -> 240 | R6: =O6+Q6 -> 280
A7: 200 | B7: غلى | C7: 20 | D7: 2019-03-04 | E7: 2019-06-04 | F7: 4444 | G7: 2052-02-06 | H7: 666666 | I7: 777 | J7: 88888 | K7: 9999 | L7: C:\Users\digital\Desktop\Sample Pictures\صور\5.jpg | M7: =E7-D7 -> 92 | N7: =IFERROR(VLOOKUP(البيانات!C7,'ارقام الغرف واسعارها'!$C$6:$D$105,2,FALSE),"") -> 20 | O7: =IFERROR(M7*N7,"") -> 1840 | P7: =IF(M7<=0,"انتهى الميعاد",IF(M7=0," اانتهى الميعاد اليوم",IF(M7>0,"لم ينتهى المبعاد",""))) -> لم ينتهى المبعاد | Q7: =K7*M7*$Q$2 -> 36796320 | R7: =O7+Q7 -> 36798160
A8: 300 | B8: iiiii | C8: 20 | D8: 2019-08-03 | E8: 2019-04-08 | F8: 1 | G8: 1900-01-02 | H8: 3 | I8: 4 | J8: 5 | K8: 6 | L8: C:\Users\digital\Desktop\Sample Pictures\صور\5.jpg | M8: =E8-D8 -> -117 | N8: =IFERROR(VLOOKUP(البيانات!C8,'ارقام الغرف واسعارها'!$C$6:$D$105,2,FALSE),"") -> 20 | O8: -2340 | P8: انتهى الميعاد | Q8: -28080 | R8: -30420
M9: 0 | N9: =IFERROR(VLOOKUP(البيانات!C9,'ارقام الغرف واسعارها'!$C$6:$D$105,2,FALSE),"") ->  | P9: انتهى الميعاد | Q9: 0
M10: 0 | N10: =IFERROR(VLOOKUP(البيانات!C10,'ارقام الغرف واسعارها'!$C$6:$D$105,2,FALSE),"") ->  | P10: انتهى الميعاد | Q10: 0
M11: 0 | N11: =IFERROR(VLOOKUP(البيانات!C11,'ارقام الغرف واسعارها'!$C$6:$D$105,2,FALSE),"") ->  | O11: =IFERROR(M11*N11,"") ->  | P11: انتهى الميعاد | Q11: 0
M12: 0 | N12: =IFERROR(VLOOKUP(البيانات!C12,'ارقام الغرف واسعارها'!$C$6:$D$105,2,FALSE),"") ->  | P12: انتهى الميعاد | Q12: 0
M13: 0 | N13: =IFERROR(VLOOKUP(البيانات!C13,'ارقام الغرف واسعارها'!$C$6:$D$105,2,FALSE),"") ->  | P13: انتهى الميعاد | Q13: 0
M14: 0 | N14: =IFERROR(VLOOKUP(البيانات!C14,'ارقام الغرف واسعارها'!$C$6:$D$105,2,FALSE),"") ->  | P14: انتهى الميعاد | Q14: 0
M15: 0 | N15: =IFERROR(VLOOKUP(البيانات!C15,'ارقام الغرف واسعارها'!$C$6:$D$105,2,FALSE),"") ->  | P15: انتهى الميعاد | Q15: 0
M16: 0 | N16: =IFERROR(VLOOKUP(البيانات!C16,'ارقام الغرف واسعارها'!$C$6:$D$105,2,FALSE),"") ->  | P16: انتهى الميعاد | Q16: 0
M17: 0 | N17: =IFERROR(VLOOKUP(البيانات!C17,'ارقام الغرف واسعارها'!$C$6:$D$105,2,FALSE),"") ->  | P17: انتهى الميعاد | Q17: 0
M18: 0 | N18: =IFERROR(VLOOKUP(البيانات!C18,'ارقام الغرف واسعارها'!$C$6:$D$105,2,FALSE),"") ->  | P18: انتهى الميعاد | Q18: 0
M19: 0 | N19: =IFERROR(VLOOKUP(البيانات!C19,'ارقام الغرف واسعارها'!$C$6:$D$105,2,FALSE),"") ->  | P19: انتهى الميعاد | Q19: 0
M20: 0 | N20: =IFERROR(VLOOKUP(البيانات!C20,'ارقام الغرف واسعارها'!$C$6:$D$105,2,FALSE),"") ->  | P20: انتهى الميعاد | Q20: 0
M21: 0 | N21: =IFERROR(VLOOKUP(البيانات!C21,'ارقام الغرف واسعارها'!$C$6:$D$105,2,FALSE),"") ->  | P21: انتهى الميعاد | Q21: 0
M22: 0 | N22: =IFERROR(VLOOKUP(البيانات!C22,'ارقام الغرف واسعارها'!$C$6:$D$105,2,FALSE),"") ->  | P22: انتهى الميعاد | Q22: 0
M23: 0 | N23: =IFERROR(VLOOKUP(البيانات!C23,'ارقام الغرف واسعارها'!$C$6:$D$105,2,FALSE),"") ->  | P23: انتهى الميعاد | Q23: 0
M24: 0 | N24: =IFERROR(VLOOKUP(البيانات!C24,'ارقام الغرف واسعارها'!$C$6:$D$105,2,FALSE),"") ->  | P24: انتهى الميعاد | Q24: 0
M25: 0 | N25: =IFERROR(VLOOKUP(البيانات!C25,'ارقام الغرف واسعارها'!$C$6:$D$105,2,FALSE),"") ->  | P25: انتهى الميعاد | Q25: 0
M26: 0 | N26: =IFERROR(VLOOKUP(البيانات!C26,'ارقام الغرف واسعارها'!$C$6:$D$105,2,FALSE),"") ->  | P26: انتهى الميعاد | Q26: 0
M27: 0 | N27: =IFERROR(VLOOKUP(البيانات!C27,'ارقام الغرف واسعارها'!$C$6:$D$105,2,FALSE),"") ->  | P27: انتهى الميعاد | Q27: 0
M28: 0 | N28: =IFERROR(VLOOKUP(البيانات!C28,'ارقام الغرف واسعارها'!$C$6:$D$105,2,FALSE),"") ->  | P28: انتهى الميعاد | Q28: 0
M29: 0 | N29: =IFERROR(VLOOKUP(البيانات!C29,'ارقام الغرف واسعارها'!$C$6:$D$105,2,FALSE),"") ->  | P29: انتهى الميعاد | Q29: 0
M30: 0 | N30: =IFERROR(VLOOKUP(البيانات!C30,'ارقام الغرف واسعارها'!$C$6:$D$105,2,FALSE),"") ->  | P30: انتهى الميعاد | Q30: 0
M31: 0 | N31: =IFERROR(VLOOKUP(البيانات!C31,'ارقام الغرف واسعارها'!$C$6:$D$105,2,FALSE),"") ->  | P31: انتهى الميعاد | Q31: 0
M32: 0 | N32: =IFERROR(VLOOKUP(البيانات!C32,'ارقام الغرف واسعارها'!$C$6:$D$105,2,FALSE),"") ->  | P32: انتهى الميعاد | Q32: 0
M33: 0 | N33: =IFERROR(VLOOKUP(البيانات!C33,'ارقام الغرف واسعارها'!$C$6:$D$105,2,FALSE),"") ->  | P33: انتهى الميعاد | Q33: 0
M34: 0 | N34: =IFERROR(VLOOKUP(البيانات!C34,'ارقام الغرف واسعارها'!$C$6:$D$105,2,FALSE),"") ->  | P34: انتهى الميعاد | Q34: 0
M35: 0 | N35: =IFERROR(VLOOKUP(البيانات!C35,'ارقام الغرف واسعارها'!$C$6:$D$105,2,FALSE),"") ->  | P35: انتهى الميعاد | Q35: 0
M36: 0 | N36: =IFERROR(VLOOKUP(البيانات!C36,'ارقام الغرف واسعارها'!$C$6:$D$105,2,FALSE),"") ->  | P36: انتهى الميعاد | Q36: 0
M37: 0 | N37: =IFERROR(VLOOKUP(البيانات!C37,'ارقام الغرف واسعارها'!$C$6:$D$105,2,FALSE),"") ->  | P37: انتهى الميعاد | Q37: 0
M38: 0 | N38: =IFERROR(VLOOKUP(البيانات!C38,'ارقام الغرف واسعارها'!$C$6:$D$105,2,FALSE),"") ->  | P38: انتهى الميعاد | Q38: 0
M39: 0 | N39: =IFERROR(VLOOKUP(البيانات!C39,'ارقام الغرف واسعارها'!$C$6:$D$105,2,FALSE),"") ->  | P39: انتهى الميعاد | Q39: 0
M40: 0 | N40: =IFERROR(VLOOKUP(البيانات!C40,'ارقام الغرف واسعارها'!$C$6:$D$105,2,FALSE),"") ->  | P40: انتهى الميعاد | Q40: 0
M41: 0 | N41: =IFERROR(VLOOKUP(البيانات!C41,'ارقام الغرف واسعارها'!$C$6:$D$105,2,FALSE),"") ->  | P41: انتهى الميعاد | Q41: 0
M42: 0 | N42: =IFERROR(VLOOKUP(البيانات!C42,'ارقام الغرف واسعارها'!$C$6:$D$105,2,FALSE),"") ->  | P42: انتهى الميعاد | Q42: 0
M43: 0 | N43: =IFERROR(VLOOKUP(البيانات!C43,'ارقام الغرف واسعارها'!$C$6:$D$105,2,FALSE),"") ->  | P43: انتهى الميعاد | Q43: 0
M44: 0 | N44: =IFERROR(VLOOKUP(البيانات!C44,'ارقام الغرف واسعارها'!$C$6:$D$105,2,FALSE),"") ->  | P44: انتهى الميعاد | Q44: 0
M45: 0 | N45: =IFERROR(VLOOKUP(البيانات!C45,'ارقام الغرف واسعارها'!$C$6:$D$105,2,FALSE),"") ->  | P45: انتهى الميعاد | Q45: 0
M46: 0 | N46: =IFERROR(VLOOKUP(البيانات!C46,'ارقام الغرف واسعارها'!$C$6:$D$105,2,FALSE),"") ->  | P46: انتهى الميعاد | Q46: 0
M47: 0 | N47: =IFERROR(VLOOKUP(البيانات!C47,'ارقام الغرف واسعارها'!$C$6:$D$105,2,FALSE),"") ->  | P47: انتهى الميعاد | Q47: 0
M48: 0 | N48: =IFERROR(VLOOKUP(البيانات!C48,'ارقام الغرف واسعارها'!$C$6:$D$105,2,FALSE),"") ->  | P48: انتهى الميعاد | Q48: 0
M49: 0 | N49: =IFERROR(VLOOKUP(البيانات!C49,'ارقام الغرف واسعارها'!$C$6:$D$105,2,FALSE),"") ->  | P49: انتهى الميعاد | Q49: 0
M50: 0 | N50: =IFERROR(VLOOKUP(البيانات!C50,'ارقام الغرف واسعارها'!$C$6:$D$105,2,FALSE),"") ->  | P50: انتهى الميعاد | Q50: 0
M51: 0 | N51: =IFERROR(VLOOKUP(البيانات!C51,'ارقام الغرف واسعارها'!$C$6:$D$105,2,FALSE),"") ->  | P51: انتهى الميعاد | Q51: 0
M52: 0 | N52: =IFERROR(VLOOKUP(البيانات!C52,'ارقام الغرف واسعارها'!$C$6:$D$105,2,FALSE),"") ->  | P52: انتهى الميعاد | Q52: 0
M53: 0 | N53: =IFERROR(VLOOKUP(البيانات!C53,'ارقام الغرف واسعارها'!$C$6:$D$105,2,FALSE),"") ->  | P53: انتهى الميعاد | Q53: 0
M54: 0 | N54: =IFERROR(VLOOKUP(البيانات!C54,'ارقام الغرف واسعارها'!$C$6:$D$105,2,FALSE),"") ->  | P54: انتهى الميعاد | Q54: 0
M55: 0 | N55: =IFERROR(VLOOKUP(البيانات!C55,'ارقام الغرف واسعارها'!$C$6:$D$105,2,FALSE),"") ->  | P55: انتهى الميعاد | Q55: 0
M56: 0 | N56: =IFERROR(VLOOKUP(البيانات!C56,'ارقام الغرف واسعارها'!$C$6:$D$105,2,FALSE),"") ->  | P56: انتهى الميعاد | Q56: 0
M57: 0 | N57: =IFERROR(VLOOKUP(البيانات!C57,'ارقام الغرف واسعارها'!$C$6:$D$105,2,FALSE),"") ->  | P57: انتهى الميعاد | Q57: 0
M58: 0 | N58: =IFERROR(VLOOKUP(البيانات!C58,'ارقام الغرف واسعارها'!$C$6:$D$105,2,FALSE),"") ->  | P58: انتهى الميعاد | Q58: 0
M59: 0 | N59: =IFERROR(VLOOKUP(البيانات!C59,'ارقام الغرف واسعارها'!$C$6:$D$105,2,FALSE),"") ->  | P59: انتهى الميعاد | Q59: 0
M60: 0 | N60: =IFERROR(VLOOKUP(البيانات!C60,'ارقام الغرف واسعارها'!$C$6:$D$105,2,FALSE),"") ->  | P60: انتهى الميعاد | Q60: 0
M61: 0 | N61: =IFERROR(VLOOKUP(البيانات!C61,'ارقام الغرف واسعارها'!$C$6:$D$105,2,FALSE),"") ->  | P61: انتهى الميعاد | Q61: 0
M62: 0 | N62: =IFERROR(VLOOKUP(البيانات!C62,'ارقام الغرف واسعارها'!$C$6:$D$105,2,FALSE),"") ->  | P62: انتهى الميعاد | Q62: 0
M63: 0 | N63: =IFERROR(VLOOKUP(البيانات!C63,'ارقام الغرف واسعارها'!$C$6:$D$105,2,FALSE),"") ->  | P63: انتهى الميعاد | Q63: 0
M64: 0 | N64: =IFERROR(VLOOKUP(البيانات!C64,'ارقام الغرف واسعارها'!$C$6:$D$105,2,FALSE),"") ->  | P64: انتهى الميعاد | Q64: 0
M65: 0 | N65: =IFERROR(VLOOKUP(البيانات!C65,'ارقام الغرف واسعارها'!$C$6:$D$105,2,FALSE),"") ->  | P65: انتهى الميعاد | Q65: 0
M66: 0 | N66: =IFERROR(VLOOKUP(البيانات!C66,'ارقام الغرف واسعارها'!$C$6:$D$105,2,FALSE),"") ->  | P66: انتهى الميعاد | Q66: 0
M67: 0 | N67: =IFERROR(VLOOKUP(البيانات!C67,'ارقام الغرف واسعارها'!$C$6:$D$105,2,FALSE),"") ->  | P67: انتهى الميعاد | Q67: 0
M68: 0 | N68: =IFERROR(VLOOKUP(البيانات!C68,'ارقام الغرف واسعارها'!$C$6:$D$105,2,FALSE),"") ->  | P68: انتهى الميعاد | Q68: 0
M69: 0 | N69: =IFERROR(VLOOKUP(البيانات!C69,'ارقام الغرف واسعارها'!$C$6:$D$105,2,FALSE),"") ->  | O69: =IFERROR(M69*N69,"") ->  | P69: انتهى الميعاد | Q69: 0
M70: =E70-D70 -> 0 | N70: =IFERROR(VLOOKUP(البيانات!C70,'ارقام الغرف واسعارها'!$C$6:$D$105,2,FALSE),"") ->  | P70: انتهى الميعاد | Q70: 0
M71: 0 | N71: =IFERROR(VLOOKUP(البيانات!C71,'ارقام الغرف واسعارها'!$C$6:$D$105,2,FALSE),"") ->  | P71: =IF(M71<=0,"انتهى الميعاد",IF(M71=0," اانتهى الميعاد اليوم",IF(M71>0,"لم ينتهى المبعاد",""))) -> انتهى الميعاد | Q71: =K71*M71*$Q$2 -> 0 | R71: =O71+Q71 -> 
M72: 0 | N72: =IFERROR(VLOOKUP(البيانات!C72,'ارقام الغرف واسعارها'!$C$6:$D$105,2,FALSE),"") ->  | P72: انتهى الميعاد | Q72: 0
M73: 0 | N73: =IFERROR(VLOOKUP(البيانات!C73,'ارقام الغرف واسعارها'!$C$6:$D$105,2,FALSE),"") ->  | P73: انتهى الميعاد | Q73: 0
M74: 0 | N74: =IFERROR(VLOOKUP(البيانات!C74,'ارقام الغرف واسعارها'!$C$6:$D$105,2,FALSE),"") ->  | P74: انتهى الميعاد | Q74: 0
M75: 0 | N75: =IFERROR(VLOOKUP(البيانات!C75,'ارقام الغرف واسعارها'!$C$6:$D$105,2,FALSE),"") ->  | P75: انتهى الميعاد | Q75: 0
M76: 0 | N76: =IFERROR(VLOOKUP(البيانات!C76,'ارقام الغرف واسعارها'!$C$6:$D$105,2,FALSE),"") ->  | P76: انتهى الميعاد | Q76: 0
M77: 0 | N77: =IFERROR(VLOOKUP(البيانات!C77,'ارقام الغرف واسعارها'!$C$6:$D$105,2,FALSE),"") ->  | P77: انتهى الميعاد | Q77: 0
M78: 0 | N78: =IFERROR(VLOOKUP(البيانات!C78,'ارقام الغرف واسعارها'!$C$6:$D$105,2,FALSE),"") ->  | P78: انتهى الميعاد | Q78: 0
M79: 0 | N79: =IFERROR(VLOOKUP(البيانات!C79,'ارقام الغرف واسعارها'!$C$6:$D$105,2,FALSE),"") ->  | P79: انتهى الميعاد | Q79: 0
M80: 0 | N80: =IFERROR(VLOOKUP(البيانات!C80,'ارقام الغرف واسعارها'!$C$6:$D$105,2,FALSE),"") ->  | P80: انتهى الميعاد | Q80: 0
M81: 0 | N81: =IFERROR(VLOOKUP(البيانات!C81,'ارقام الغرف واسعارها'!$C$6:$D$105,2,FALSE),"") ->  | P81: انتهى الميعاد | Q81: 0
M82: 0 | N82: =IFERROR(VLOOKUP(البيانات!C82,'ارقام الغرف واسعارها'!$C$6:$D$105,2,FALSE),"") ->  | P82: انتهى الميعاد | Q82: 0
M83: 0 | N83: =IFERROR(VLOOKUP(البيانات!C83,'ارقام الغرف واسعارها'!$C$6:$D$105,2,FALSE),"") ->  | P83: انتهى الميعاد | Q83: 0
M84: 0 | N84: =IFERROR(VLOOKUP(البيانات!C84,'ارقام الغرف واسعارها'!$C$6:$D$105,2,FALSE),"") ->  | P84: انتهى الميعاد | Q84: 0
M85: 0 | N85: =IFERROR(VLOOKUP(البيانات!C85,'ارقام الغرف واسعارها'!$C$6:$D$105,2,FALSE),"") ->  | P85: انتهى الميعاد | Q85: 0
M86: 0 | N86: =IFERROR(VLOOKUP(البيانات!C86,'ارقام الغرف واسعارها'!$C$6:$D$105,2,FALSE),"") ->  | P86: انتهى الميعاد | Q86: 0
M87: 0 | N87: =IFERROR(VLOOKUP(البيانات!C87,'ارقام الغرف واسعارها'!$C$6:$D$105,2,FALSE),"") ->  | P87: انتهى الميعاد | Q87: 0
M88: 0 | N88: =IFERROR(VLOOKUP(البيانات!C88,'ارقام الغرف واسعارها'!$C$6:$D$105,2,FALSE),"") ->  | P88: انتهى الميعاد | Q88: 0
M89: 0 | N89: =IFERROR(VLOOKUP(البيانات!C89,'ارقام الغرف واسعارها'!$C$6:$D$105,2,FALSE),"") ->  | P89: انتهى الميعاد | Q89: 0
M90: 0 | N90: =IFERROR(VLOOKUP(البيانات!C90,'ارقام الغرف واسعارها'!$C$6:$D$105,2,FALSE),"") ->  | P90: انتهى الميعاد | Q90: 0
M91: 0 | N91: =IFERROR(VLOOKUP(البيانات!C91,'ارقام الغرف واسعارها'!$C$6:$D$105,2,FALSE),"") ->  | P91: انتهى الميعاد | Q91: 0
M92: 0 | N92: =IFERROR(VLOOKUP(البيانات!C92,'ارقام الغرف واسعارها'!$C$6:$D$105,2,FALSE),"") ->  | P92: انتهى الميعاد | Q92: 0
M93: 0 | N93: =IFERROR(VLOOKUP(البيانات!C93,'ارقام الغرف واسعارها'!$C$6:$D$105,2,FALSE),"") ->  | P93: انتهى الميعاد | Q93: 0
M94: 0 | N94: =IFERROR(VLOOKUP(البيانات!C94,'ارقام الغرف واسعارها'!$C$6:$D$105,2,FALSE),"") ->  | P94: انتهى الميعاد | Q94: 0
M95: 0 | N95: =IFERROR(VLOOKUP(البيانات!C95,'ارقام الغرف واسعارها'!$C$6:$D$105,2,FALSE),"") ->  | P95: انتهى الميعاد | Q95: 0
M96: 0 | N96: =IFERROR(VLOOKUP(البيانات!C96,'ارقام الغرف واسعارها'!$C$6:$D$105,2,FALSE),"") ->  | P96: انتهى الميعاد | Q96: 0
M97: 0 | N97: =IFERROR(VLOOKUP(البيانات!C97,'ارقام الغرف واسعارها'!$C$6:$D$105,2,FALSE),"") ->  | P97: انتهى الميعاد | Q97: 0
M98: 0 | N98: =IFERROR(VLOOKUP(البيانات!C98,'ارقام الغرف واسعارها'!$C$6:$D$105,2,FALSE),"") ->  | P98: انتهى الميعاد | Q98: 0
M99: 0 | N99: =IFERROR(VLOOKUP(البيانات!C99,'ارقام الغرف واسعارها'!$C$6:$D$105,2,FALSE),"") ->  | P99: انتهى الميعاد | Q99: 0
M100: 0 | N100: =IFERROR(VLOOKUP(البيانات!C100,'ارقام الغرف واسعارها'!$C$6:$D$105,2,FALSE),"") ->  | P100: انتهى الميعاد | Q100: 0
M101: 0 | N101: =IFERROR(VLOOKUP(البيانات!C101,'ارقام الغرف واسعارها'!$C$6:$D$105,2,FALSE),"") ->  | P101: انتهى الميعاد | Q101: 0
M102: 0 | N102: =IFERROR(VLOOKUP(البيانات!C102,'ارقام الغرف واسعارها'!$C$6:$D$105,2,FALSE),"") ->  | P102: انتهى الميعاد | Q102: 0
M103: 0 | N103: =IFERROR(VLOOKUP(البيانات!C103,'ارقام الغرف واسعارها'!$C$6:$D$105,2,FALSE),"") ->  | P103: انتهى الميعاد | Q103: 0
M104: 0 | N104: =IFERROR(VLOOKUP(البيانات!C104,'ارقام الغرف واسعارها'!$C$6:$D$105,2,FALSE),"") ->  | P104: انتهى الميعاد | Q104: 0
M105: 0 | N105: =IFERROR(VLOOKUP(البيانات!C105,'ارقام الغرف واسعارها'!$C$6:$D$105,2,FALSE),"") ->  | P105: انتهى الميعاد | Q105: 0
M106: 0 | N106: =IFERROR(VLOOKUP(البيانات!C106,'ارقام الغرف واسعارها'!$C$6:$D$105,2,FALSE),"") ->  | P106: انتهى الميعاد | Q106: 0
M107: 0 | N107: =IFERROR(VLOOKUP(البيانات!C107,'ارقام الغرف واسعارها'!$C$6:$D$105,2,FALSE),"") ->  | P107: انتهى الميعاد | Q107: 0
M108: 0 | N108: =IFERROR(VLOOKUP(البيانات!C108,'ارقام الغرف واسعارها'!$C$6:$D$105,2,FALSE),"") ->  | P108: انتهى الميعاد | Q108: 0
M109: 0 | N109: =IFERROR(VLOOKUP(البيانات!C109,'ارقام الغرف واسعارها'!$C$6:$D$105,2,FALSE),"") ->  | P109: انتهى الميعاد | Q109: 0
M110: 0 | N110: =IFERROR(VLOOKUP(البيانات!C110,'ارقام الغرف واسعارها'!$C$6:$D$105,2,FALSE),"") ->  | P110: انتهى الميعاد | Q110: 0
M111: 0 | N111: =IFERROR(VLOOKUP(البيانات!C111,'ارقام الغرف واسعارها'!$C$6:$D$105,2,FALSE),"") ->  | P111: انتهى الميعاد | Q111: 0
M112: 0 | N112: =IFERROR(VLOOKUP(البيانات!C112,'ارقام الغرف واسعارها'!$C$6:$D$105,2,FALSE),"") ->  | P112: انتهى الميعاد | Q112: 0
M113: 0 | N113: =IFERROR(VLOOKUP(البيانات!C113,'ارقام الغرف واسعارها'!$C$6:$D$105,2,FALSE),"") ->  | P113: انتهى الميعاد | Q113: 0
M114: 0 | N114: =IFERROR(VLOOKUP(البيانات!C114,'ارقام الغرف واسعارها'!$C$6:$D$105,2,FALSE),"") ->  | P114: انتهى الميعاد | Q114: 0
M115: 0 | N115: =IFERROR(VLOOKUP(البيانات!C115,'ارقام الغرف واسعارها'!$C$6:$D$105,2,FALSE),"") ->  | P115: انتهى الميعاد | Q115: 0
M116: 0 | N116: =IFERROR(VLOOKUP(البيانات!C116,'ارقام الغرف واسعارها'!$C$6:$D$105,2,FALSE),"") ->  | P116: انتهى الميعاد | Q116: 0
M117: 0 | N117: =IFERROR(VLOOKUP(البيانات!C117,'ارقام الغرف واسعارها'!$C$6:$D$105,2,FALSE),"") ->  | P117: انتهى الميعاد | Q117: 0
M118: 0 | N118: =IFERROR(VLOOKUP(البيانات!C118,'ارقام الغرف واسعارها'!$C$6:$D$105,2,FALSE),"") ->  | P118: انتهى الميعاد | Q118: 0
M119: 0 | N119: =IFERROR(VLOOKUP(البيانات!C119,'ارقام الغرف واسعارها'!$C$6:$D$105,2,FALSE),"") ->  | P119: انتهى الميعاد | Q119: 0
M120: 0 | N120: =IFERROR(VLOOKUP(البيانات!C120,'ارقام الغرف واسعارها'!$C$6:$D$105,2,FALSE),"") ->  | P120: انتهى الميعاد | Q120: 0
M121: 0 | N121: =IFERROR(VLOOKUP(البيانات!C121,'ارقام الغرف واسعارها'!$C$6:$D$105,2,FALSE),"") ->  | P121: انتهى الميعاد | Q121: 0
M122: 0 | N122: =IFERROR(VLOOKUP(البيانات!C122,'ارقام الغرف واسعارها'!$C$6:$D$105,2,FALSE),"") ->  | P122: انتهى الميعاد | Q122: 0
M123: 0 | N123: =IFERROR(VLOOKUP(البيانات!C123,'ارقام الغرف واسعارها'!$C$6:$D$105,2,FALSE),"") ->  | P123: انتهى الميعاد | Q123: 0
M124: 0 | N124: =IFERROR(VLOOKUP(البيانات!C124,'ارقام الغرف واسعارها'!$C$6:$D$105,2,FALSE),"") ->  | P124: انتهى الميعاد | Q124: 0
M125: 0 | N125: =IFERROR(VLOOKUP(البيانات!C125,'ارقام الغرف واسعارها'!$C$6:$D$105,2,FALSE),"") ->  | P125: انتهى الميعاد | Q125: 0
M126: 0 | N126: =IFERROR(VLOOKUP(البيانات!C126,'ارقام الغرف واسعارها'!$C$6:$D$105,2,FALSE),"") ->  | P126: انتهى الميعاد | Q126: 0
M127: 0 | N127: =IFERROR(VLOOKUP(البيانات!C127,'ارقام الغرف واسعارها'!$C$6:$D$105,2,FALSE),"") ->  | P127: انتهى الميعاد | Q127: 0
M128: 0 | N128: =IFERROR(VLOOKUP(البيانات!C128,'ارقام الغرف واسعارها'!$C$6:$D$105,2,FALSE),"") ->  | P128: انتهى الميعاد | Q128: 0
M129: 0 | N129: =IFERROR(VLOOKUP(البيانات!C129,'ارقام الغرف واسعارها'!$C$6:$D$105,2,FALSE),"") ->  | P129: انتهى الميعاد | Q129: 0
M130: 0 | N130: =IFERROR(VLOOKUP(البيانات!C130,'ارقام الغرف واسعارها'!$C$6:$D$105,2,FALSE),"") ->  | P130: انتهى الميعاد | Q130: 0
M131: 0 | N131: =IFERROR(VLOOKUP(البيانات!C131,'ارقام الغرف واسعارها'!$C$6:$D$105,2,FALSE),"") ->  | P131: انتهى الميعاد | Q131: 0
M132: 0 | N132: =IFERROR(VLOOKUP(البيانات!C132,'ارقام الغرف واسعارها'!$C$6:$D$105,2,FALSE),"") ->  | P132: انتهى الميعاد | Q132: 0
M133: 0 | N133: =IFERROR(VLOOKUP(البيانات!C133,'ارقام الغرف واسعارها'!$C$6:$D$105,2,FALSE),"") ->  | O133: =IFERROR(M133*N133,"") ->  | P133: انتهى الميعاد | Q133: 0
M134: =E134-D134 -> 0 | N134: =IFERROR(VLOOKUP(البيانات!C134,'ارقام الغرف واسعارها'!$C$6:$D$105,2,FALSE),"") ->  | P134: انتهى الميعاد | Q134: 0
M135: 0 | N135: =IFERROR(VLOOKUP(البيانات!C135,'ارقام الغرف واسعارها'!$C$6:$D$105,2,FALSE),"") ->  | P135: =IF(M135<=0,"انتهى الميعاد",IF(M135=0," اانتهى الميعاد اليوم",IF(M135>0,"لم ينتهى المبعاد",""))) -> انتهى الميعاد | Q135: =K135*M135*$Q$2 -> 0 | R135: =O135+Q135 -> 
M136: 0 | N136: =IFERROR(VLOOKUP(البيانات!C136,'ارقام الغرف واسعارها'!$C$6:$D$105,2,FALSE),"") ->  | P136: انتهى الميعاد | Q136: 0
M137: 0 | N137: =IFERROR(VLOOKUP(البيانات!C137,'ارقام الغرف واسعارها'!$C$6:$D$105,2,FALSE),"") ->  | P137: انتهى الميعاد | Q137: 0
M138: 0 | N138: =IFERROR(VLOOKUP(البيانات!C138,'ارقام الغرف واسعارها'!$C$6:$D$105,2,FALSE),"") ->  | P138: انتهى الميعاد | Q138: 0
M139: 0 | N139: =IFERROR(VLOOKUP(البيانات!C139,'ارقام الغرف واسعارها'!$C$6:$D$105,2,FALSE),"") ->  | P139: انتهى الميعاد | Q139: 0
M140: 0 | N140: =IFERROR(VLOOKUP(البيانات!C140,'ارقام الغرف واسعارها'!$C$6:$D$105,2,FALSE),"") ->  | P140: انتهى الميعاد | Q140: 0
M141: 0 | N141: =IFERROR(VLOOKUP(البيانات!C141,'ارقام الغرف واسعارها'!$C$6:$D$105,2,FALSE),"") ->  | P141: انتهى الميعاد | Q141: 0
M142: 0 | N142: =IFERROR(VLOOKUP(البيانات!C142,'ارقام الغرف واسعارها'!$C$6:$D$105,2,FALSE),"") ->  | P142: انتهى الميعاد | Q142: 0
M143: 0 | N143: =IFERROR(VLOOKUP(البيانات!C143,'ارقام الغرف واسعارها'!$C$6:$D$105,2,FALSE),"") ->  | P143: انتهى الميعاد | Q143: 0
M144: 0 | N144: =IFERROR(VLOOKUP(البيانات!C144,'ارقام الغرف واسعارها'!$C$6:$D$105,2,FALSE),"") ->  | P144: انتهى الميعاد | Q144: 0
M145: 0 | N145: =IFERROR(VLOOKUP(البيانات!C145,'ارقام الغرف واسعارها'!$C$6:$D$105,2,FALSE),"") ->  | P145: انتهى الميعاد | Q145: 0
M146: 0 | N146: =IFERROR(VLOOKUP(البيانات!C146,'ارقام الغرف واسعارها'!$C$6:$D$105,2,FALSE),"") ->  | P146: انتهى الميعاد | Q146: 0
M147: 0 | N147: =IFERROR(VLOOKUP(البيانات!C147,'ارقام الغرف واسعارها'!$C$6:$D$105,2,FALSE),"") ->  | P147: انتهى الميعاد | Q147: 0
M148: 0 | N148: =IFERROR(VLOOKUP(البيانات!C148,'ارقام الغرف واسعارها'!$C$6:$D$105,2,FALSE),"") ->  | P148: انتهى الميعاد | Q148: 0
M149: 0 | N149: =IFERROR(VLOOKUP(البيانات!C149,'ارقام الغرف واسعارها'!$C$6:$D$105,2,FALSE),"") ->  | P149: انتهى الميعاد | Q149: 0
M150: 0 | N150: =IFERROR(VLOOKUP(البيانات!C150,'ارقام الغرف واسعارها'!$C$6:$D$105,2,FALSE),"") ->  | P150: انتهى الميعاد | Q150: 0
M151: 0 | N151: =IFERROR(VLOOKUP(البيانات!C151,'ارقام الغرف واسعارها'!$C$6:$D$105,2,FALSE),"") ->  | P151: انتهى الميعاد | Q151: 0
M152: 0 | N152: =IFERROR(VLOOKUP(البيانات!C152,'ارقام الغرف واسعارها'!$C$6:$D$105,2,FALSE),"") ->  | P152: انتهى الميعاد | Q152: 0
M153: 0 | N153: =IFERROR(VLOOKUP(البيانات!C153,'ارقام الغرف واسعارها'!$C$6:$D$105,2,FALSE),"") ->  | P153: انتهى الميعاد | Q153: 0
M154: 0 | N154: =IFERROR(VLOOKUP(البيانات!C154,'ارقام الغرف واسعارها'!$C$6:$D$105,2,FALSE),"") ->  | P154: انتهى الميعاد | Q154: 0
M155: 0 | N155: =IFERROR(VLOOKUP(البيانات!C155,'ارقام الغرف واسعارها'!$C$6:$D$105,2,FALSE),"") ->  | P155: انتهى الميعاد | Q155: 0
M156: 0 | N156: =IFERROR(VLOOKUP(البيانات!C156,'ارقام الغرف واسعارها'!$C$6:$D$105,2,FALSE),"") ->  | P156: انتهى الميعاد | Q156: 0
M157: 0 | N157: =IFERROR(VLOOKUP(البيانات!C157,'ارقام الغرف واسعارها'!$C$6:$D$105,2,FALSE),"") ->  | P157: انتهى الميعاد | Q157: 0
M158: 0 | N158: =IFERROR(VLOOKUP(البيانات!C158,'ارقام الغرف واسعارها'!$C$6:$D$105,2,FALSE),"") ->  | P158: انتهى الميعاد | Q158: 0
M159: 0 | N159: =IFERROR(VLOOKUP(البيانات!C159,'ارقام الغرف واسعارها'!$C$6:$D$105,2,FALSE),"") ->  | P159: انتهى الميعاد | Q159: 0
M160: 0 | N160: =IFERROR(VLOOKUP(البيانات!C160,'ارقام الغرف واسعارها'!$C$6:$D$105,2,FALSE),"") ->  | P160: انتهى الميعاد | Q160: 0
M161: 0 | N161: =IFERROR(VLOOKUP(البيانات!C161,'ارقام الغرف واسعارها'!$C$6:$D$105,2,FALSE),"") ->  | P161: انتهى الميعاد | Q161: 0
M162: 0 | N162: =IFERROR(VLOOKUP(البيانات!C162,'ارقام الغرف واسعارها'!$C$6:$D$105,2,FALSE),"") ->  | P162: انتهى الميعاد | Q162: 0
M163: 0 | N163: =IFERROR(VLOOKUP(البيانات!C163,'ارقام الغرف واسعارها'!$C$6:$D$105,2,FALSE),"") ->  | P163: انتهى الميعاد | Q163: 0
M164: 0 | N164: =IFERROR(VLOOKUP(البيانات!C164,'ارقام الغرف واسعارها'!$C$6:$D$105,2,FALSE),"") ->  | P164: انتهى الميعاد | Q164: 0
M165: 0 | N165: =IFERROR(VLOOKUP(البيانات!C165,'ارقام الغرف واسعارها'!$C$6:$D$105,2,FALSE),"") ->  | P165: انتهى الميعاد | Q165: 0
M166: 0 | N166: =IFERROR(VLOOKUP(البيانات!C166,'ارقام الغرف واسعارها'!$C$6:$D$105,2,FALSE),"") ->  | P166: انتهى الميعاد | Q166: 0
M167: 0 | N167: =IFERROR(VLOOKUP(البيانات!C167,'ارقام الغرف واسعارها'!$C$6:$D$105,2,FALSE),"") ->  | P167: انتهى الميعاد | Q167: 0
M168: 0 | N168: =IFERROR(VLOOKUP(البيانات!C168,'ارقام الغرف واسعارها'!$C$6:$D$105,2,FALSE),"") ->  | P168: انتهى الميعاد | Q168: 0
M169: 0 | N169: =IFERROR(VLOOKUP(البيانات!C169,'ارقام الغرف واسعارها'!$C$6:$D$105,2,FALSE),"") ->  | P169: انتهى الميعاد | Q169: 0
M170: 0 | N170: =IFERROR(VLOOKUP(البيانات!C170,'ارقام الغرف واسعارها'!$C$6:$D$105,2,FALSE),"") ->  | P170: انتهى الميعاد | Q170: 0
M171: 0 | N171: =IFERROR(VLOOKUP(البيانات!C171,'ارقام الغرف واسعارها'!$C$6:$D$105,2,FALSE),"") ->  | P171: انتهى الميعاد | Q171: 0
M172: 0 | N172: =IFERROR(VLOOKUP(البيانات!C172,'ارقام الغرف واسعارها'!$C$6:$D$105,2,FALSE),"") ->  | P172: انتهى الميعاد | Q172: 0
M173: 0 | N173: =IFERROR(VLOOKUP(البيانات!C173,'ارقام الغرف واسعارها'!$C$6:$D$105,2,FALSE),"") ->  | P173: انتهى الميعاد | Q173: 0
M174: 0 | N174: =IFERROR(VLOOKUP(البيانات!C174,'ارقام الغرف واسعارها'!$C$6:$D$105,2,FALSE),"") ->  | P174: انتهى الميعاد | Q174: 0
M175: 0 | N175: =IFERROR(VLOOKUP(البيانات!C175,'ارقام الغرف واسعارها'!$C$6:$D$105,2,FALSE),"") ->  | P175: انتهى الميعاد | Q175: 0
M176: 0 | N176: =IFERROR(VLOOKUP(البيانات!C176,'ارقام الغرف واسعارها'!$C$6:$D$105,2,FALSE),"") ->  | P176: انتهى الميعاد | Q176: 0
M177: 0 | N177: =IFERROR(VLOOKUP(البيانات!C177,'ارقام الغرف واسعارها'!$C$6:$D$105,2,FALSE),"") ->  | P177: انتهى الميعاد | Q177: 0
M178: 0 | N178: =IFERROR(VLOOKUP(البيانات!C178,'ارقام الغرف واسعارها'!$C$6:$D$105,2,FALSE),"") ->  | P178: انتهى الميعاد | Q178: 0
M179: 0 | N179: =IFERROR(VLOOKUP(البيانات!C179,'ارقام الغرف واسعارها'!$C$6:$D$105,2,FALSE),"") ->  | P179: انتهى الميعاد | Q179: 0
M180: 0 | N180: =IFERROR(VLOOKUP(البيانات!C180,'ارقام الغرف واسعارها'!$C$6:$D$105,2,FALSE),"") ->  | P180: انتهى الميعاد | Q180: 0
M181: 0 | N181: =IFERROR(VLOOKUP(البيانات!C181,'ارقام الغرف واسعارها'!$C$6:$D$105,2,FALSE),"") ->  | P181: انتهى الميعاد | Q181: 0
M182: 0 | N182: =IFERROR(VLOOKUP(البيانات!C182,'ارقام الغرف واسعارها'!$C$6:$D$105,2,FALSE),"") ->  | P182: انتهى الميعاد | Q182: 0
M183: 0 | N183: =IFERROR(VLOOKUP(البيانات!C183,'ارقام الغرف واسعارها'!$C$6:$D$105,2,FALSE),"") ->  | P183: انتهى الميعاد | Q183: 0
M184: 0 | N184: =IFERROR(VLOOKUP(البيانات!C184,'ارقام الغرف واسعارها'!$C$6:$D$105,2,FALSE),"") ->  | P184: انتهى الميعاد | Q184: 0
M185: 0 | N185: =IFERROR(VLOOKUP(البيانات!C185,'ارقام الغرف واسعارها'!$C$6:$D$105,2,FALSE),"") ->  | P185: انتهى الميعاد | Q185: 0
M186: 0 | N186: =IFERROR(VLOOKUP(البيانات!C186,'ارقام الغرف واسعارها'!$C$6:$D$105,2,FALSE),"") ->  | P186: انتهى الميعاد | Q186: 0
M187: 0 | N187: =IFERROR(VLOOKUP(البيانات!C187,'ارقام الغرف واسعارها'!$C$6:$D$105,2,FALSE),"") ->  | P187: انتهى الميعاد | Q187: 0
M188: 0 | N188: =IFERROR(VLOOKUP(البيانات!C188,'ارقام الغرف واسعارها'!$C$6:$D$105,2,FALSE),"") ->  | P188: انتهى الميعاد | Q188: 0
M189: 0 | N189: =IFERROR(VLOOKUP(البيانات!C189,'ارقام الغرف واسعارها'!$C$6:$D$105,2,FALSE),"") ->  | P189: انتهى الميعاد | Q189: 0
M190: 0 | N190: =IFERROR(VLOOKUP(البيانات!C190,'ارقام الغرف واسعارها'!$C$6:$D$105,2,FALSE),"") ->  | P190: انتهى الميعاد | Q190: 0
M191: 0 | N191: =IFERROR(VLOOKUP(البيانات!C191,'ارقام الغرف واسعارها'!$C$6:$D$105,2,FALSE),"") ->  | P191: انتهى الميعاد | Q191: 0
M192: 0 | N192: =IFERROR(VLOOKUP(البيانات!C192,'ارقام الغرف واسعارها'!$C$6:$D$105,2,FALSE),"") ->  | P192: انتهى الميعاد | Q192: 0
M193: 0 | N193: =IFERROR(VLOOKUP(البيانات!C193,'ارقام الغرف واسعارها'!$C$6:$D$105,2,FALSE),"") ->  | P193: انتهى الميعاد | Q193: 0
M194: 0 | N194: =IFERROR(VLOOKUP(البيانات!C194,'ارقام الغرف واسعارها'!$C$6:$D$105,2,FALSE),"") ->  | P194: انتهى الميعاد | Q194: 0
M195: 0 | N195: =IFERROR(VLOOKUP(البيانات!C195,'ارقام الغرف واسعارها'!$C$6:$D$105,2,FALSE),"") ->  | P195: انتهى الميعاد | Q195: 0
M196: 0 | N196: =IFERROR(VLOOKUP(البيانات!C196,'ارقام الغرف واسعارها'!$C$6:$D$105,2,FALSE),"") ->  | P196: انتهى الميعاد | Q196: 0
M197: 0 | N197: =IFERROR(VLOOKUP(البيانات!C197,'ارقام الغرف واسعارها'!$C$6:$D$105,2,FALSE),"") ->  | O197: =IFERROR(M197*N197,"") ->  | P197: انتهى الميعاد | Q197: 0
M198: =E198-D198 -> 0 | N198: =IFERROR(VLOOKUP(البيانات!C198,'ارقام الغرف واسعارها'!$C$6:$D$105,2,FALSE),"") ->  | P198: انتهى الميعاد | Q198: 0
M199: 0 | N199: =IFERROR(VLOOKUP(البيانات!C199,'ارقام الغرف واسعارها'!$C$6:$D$105,2,FALSE),"") ->  | P199: =IF(M199<=0,"انتهى الميعاد",IF(M199=0," اانتهى الميعاد اليوم",IF(M199>0,"لم ينتهى المبعاد",""))) -> انتهى الميعاد | Q199: =K199*M199*$Q$2 -> 0 | R199: =O199+Q199 -> 
M200: 0 | N200: =IFERROR(VLOOKUP(البيانات!C200,'ارقام الغرف واسعارها'!$C$6:$D$105,2,FALSE),"") ->  | P200: انتهى الميعاد | Q200: 0
M201: 0 | N201: =IFERROR(VLOOKUP(البيانات!C201,'ارقام الغرف واسعارها'!$C$6:$D$105,2,FALSE),"") ->  | P201: انتهى الميعاد | Q201: 0
M202: 0 | N202: =IFERROR(VLOOKUP(البيانات!C202,'ارقام الغرف واسعارها'!$C$6:$D$105,2,FALSE),"") ->  | P202: انتهى الميعاد | Q202: 0
... 798 more rows

Sheet مغادر
E2: بيانات المغادرين
E3: حتى تاريخ | F3: =TODAY() -> 2019-10-11
A5: رقم العميل | B5: اسم العميل | C5: رقم الحجرة | D5: تاريخ الدخول | E5: تاريخ الخروج | F5: رقم البطاقة او الجواز | G5: تاريخ وجهة الاصدار | H5: المهنة | I5: النوع | J5: الجنسية | K5: محل الاقامة | L5: عدد الايام
L6: =E6-D6 -> 0
L7: =E7-D7 -> 0
L8: 0
L9: 0
L10: 0
L11: 0
L12: 0
L13: 0
L14: 0
L15: 0
L16: 0
L17: 0
L18: 0
L19: 0
L20: 0
L21: 0
L22: 0
L23: 0
L24: 0
L25: 0
L26: 0
L27: 0
L28: 0
L29: 0
L30: 0
L31: 0
L32: 0
L33: 0
L34: 0
L35: 0
L36: 0
L37: 0
L38: 0
L39: 0
L40: 0
L41: 0
L42: 0
L43: 0
L44: 0
L45: 0
L46: 0
L47: 0
L48: 0
L49: 0
L50: 0
L51: 0
L52: 0
L53: 0
L54: 0
L55: 0
L56: 0
L57: 0
L58: 0
L59: 0
L60: 0
L61: 0
L62: 0
L63: 0
L64: 0
L65: 0
L66: 0
L67: 0
L68: 0
L69: 0
L70: 0
L71: =E71-D71 -> 0
L72: 0
L73: 0
L74: 0
L75: 0
L76: 0
L77: 0
L78: 0
L79: 0
L80: 0
L81: 0
L82: 0
L83: 0
L84: 0
L85: 0
L86: 0
L87: 0
L88: 0
L89: 0
L90: 0
L91: 0
L92: 0
L93: 0
L94: 0
L95: 0
L96: 0
L97: 0
L98: 0
L99: 0
L100: 0
L101: 0
L102: 0
L103: 0
L104: 0
L105: 0
L106: 0
L107: 0
L108: 0
L109: 0
L110: 0
L111: 0
L112: 0
L113: 0
L114: 0
L115: 0
L116: 0
L117: 0
L118: 0
L119: 0
L120: 0
L121: 0
L122: 0
L123: 0
L124: 0
L125: 0
L126: 0
L127: 0
L128: 0
L129: 0
L130: 0
L131: 0
L132: 0
L133: 0
L134: 0
L135: =E135-D135 -> 0
L136: 0
L137: 0
L138: 0
L139: 0
L140: 0
L141: 0
L142: 0
L143: 0
L144: 0
L145: 0
L146: 0
L147: 0
L148: 0
L149: 0
L150: 0
L151: 0
L152: 0
L153: 0
L154: 0
L155: 0
L156: 0
L157: 0
L158: 0
L159: 0
L160: 0
L161: 0
L162: 0
L163: 0
L164: 0
L165: 0
L166: 0
L167: 0
L168: 0
L169: 0
L170: 0
L171: 0
L172: 0
L173: 0
L174: 0
L175: 0
L176: 0
L177: 0
L178: 0
L179: 0
L180: 0
L181: 0
L182: 0
L183: 0
L184: 0
L185: 0
L186: 0
L187: 0
L188: 0
L189: 0
L190: 0
L191: 0
L192: 0
L193: 0
L194: 0
L195: 0
L196: 0
L197: 0
L198: 0
L199: =E199-D199 -> 0
L200: 0
L201: 0
L202: 0
... 799 more rows

Sheet الغرف
B1: البحث عن نزيل | F1: عدد كل الغرف | H1: =$C$9+$C$14+$C$19 -> 30 | I1: فارغة دور اول | K1: =COUNTIF($D$9:$M$9,"0") -> 9 | L1: عدد الافراد | M1: =D9+E9+F9+G9+H9+I9+J9+K9+L9+M9 -> 3
F2: عدد غرف الدور الاول | H2: =$C$9 -> 10 | I2: فارغة دور ثانى | K2: =COUNTIF($D$14:$M$14,"0") -> 10 | L2: عدد الافراد | M2: =SUM($D$14:$M$14) -> 0
B3: الاسم | C3: عوض | F3: عدد غرف الدور الثانى | H3: =$C$14 -> 10 | I3: فارغة دور ثالث | K3: =COUNTIF($D$14:$M$14,"0") -> 10 | L3: عدد الافراد | M3: =SUM($D$14:$M$14) -> 0
B4: رقم الغرفة | C4: =IFERROR(VLOOKUP($C$3,البيانات!$B$6:$C$49998,2,FALSE),"") -> 20 | F4: عدد غرف الدور الثالث | H4: =$C$19 -> 10 | I4: فارغة دور ثالث | K4: =COUNTIF($D$19:$M$19,"0") -> 10 | L4: عدد الافراد | M4: =SUM($D$19:$M$19) -> 0
G5: =IF(E9>E10,"الغرفة بها سرير واحد ومحجوز","") -> الغرفة بها سرير واحد ومحجوز
C7: الحالة | D7: =IF(D$9>=D$10,"محجوزة","") ->  | E7: =IF(E$9>=E$10,"محجوزة","") -> محجوزة | G7: محجوزة | H7: محجوزة | I7: محجوزة | J7: محجوزة | K7: محجوزة | L7: محجوزة | M7: محجوزة
C8: رقم الغرفة | D8: ='ارقام الغرف واسعارها'!$C$6 -> 10 | E8: ='ارقام الغرف واسعارها'!$C$7 -> 20 | F8: ='ارقام الغرف واسعارها'!$C$8 -> 30 | G8: ='ارقام الغرف واسعارها'!$C$9 -> 0 | H8: ='ارقام الغرف واسعارها'!$C$10 -> 0 | I8: ='ارقام الغرف واسعارها'!$C$11 -> 0 | J8: ='ارقام الغرف واسعارها'!$C$12 -> 0 | K8: ='ارقام الغرف واسعارها'!$C$13 -> 0 | L8: ='ارقام الغرف واسعارها'!$C$14 -> 0 | M8: ='ارقام الغرف واسعارها'!$C$15 -> 0 | R8: 10 | S8: 20 | T8: 30 | U8: 40 | V8: 50 | W8: 60 | X8: 70 | Y8: 80 | Z8: 90 | AA8: 100
B9: الدور الاول | C9: 10 | D9: =$R$9 -> 0 | E9: =$S$9 -> 3 | F9: =$T$9 -> 0 | G9: =$U$9 -> 0 | H9: =$V$9 -> 0 | I9: =$W$9 -> 0 | J9: =$X$9 -> 0 | K9: =$Y$9 -> 0 | L9: =$Z$9 -> 0 | M9: =$AA$9 -> 0 | R9: =COUNTIF(البيانات!$C:$C,10) -> 0 | S9: =COUNTIF(البيانات!$C:$C,20) -> 3 | T9: =COUNTIF(البيانات!$C:$C,30) -> 0 | U9: =COUNTIF(البيانات!$C:$C,40) -> 0 | V9: =COUNTIF(البيانات!$C:$C,50) -> 0 | W9: =COUNTIF(البيانات!$C:$C,60) -> 0 | X9: =COUNTIF(البيانات!$C:$C,70) -> 0 | Y9: =COUNTIF(البيانات!$C:$C,80) -> 0 | Z9: =COUNTIF(البيانات!$C:$C,90) -> 0 | AA9: =COUNTIF(البيانات!$C:$C,100) -> 0
C10: عدد الاسرة | D10: ='ارقام الغرف واسعارها'!E6 -> 1 | E10: ='ارقام الغرف واسعارها'!E7 -> 1 | F10: ='ارقام الغرف واسعارها'!E8 -> 1 | G10: ='ارقام الغرف واسعارها'!E9 -> 0 | H10: ='ارقام الغرف واسعارها'!E10 -> 0 | I10: ='ارقام الغرف واسعارها'!E11 -> 0 | J10: ='ارقام الغرف واسعارها'!E12 -> 0 | K10: ='ارقام الغرف واسعارها'!E13 -> 0 | L10: ='ارقام الغرف واسعارها'!E14 -> 0 | M10: ='ارقام الغرف واسعارها'!E15 -> 0
D12: =IF(D$14>=D$15,"محجوزة","") ->  | E12: =IF(E$14>=E$15,"محجوزة","") -> 
C13: رقم الغرفة | D13: 110 | E13: 120 | F13: 130 | G13: 140 | H13: 150 | I13: 160 | J13: 170 | K13: 180 | L13: 190 | M13: 200
B14: الدور الثانى | C14: 10 | D14: =R$14 -> 0 | E14: =S$14 -> 0 | F14: 0 | G14: 0 | H14: 0 | I14: 0 | J14: 0 | K14: 0 | L14: 0 | M14: 0 | R14: =COUNTIF(البيانات!$C:$C,110) -> 0 | S14: =COUNTIF(البيانات!$C:$C,120) -> 0 | T14: =COUNTIF(البيانات!$C:$C,130) -> 0 | U14: =COUNTIF(البيانات!$C:$C,140) -> 0 | V14: =COUNTIF(البيانات!$C:$C,150) -> 0 | W14: =COUNTIF(البيانات!$C:$C,160) -> 0 | X14: =COUNTIF(البيانات!$C:$C,170) -> 0 | Y14: =COUNTIF(البيانات!$C:$C,180) -> 0 | Z14: =COUNTIF(البيانات!$C:$C,190) -> 0 | AA14: =COUNTIF(البيانات!$C:$C,200) -> 0
C15: عدد الاسرة | D15: 1 | E15: 1 | F15: 1 | G15: 2 | H15: 2 | I15: 2 | J15: 3 | K15: 3 | L15: 4 | M15: 4
D17: =IF(D$19>=D$20,"محجوزة","") ->  | E17: =IF(E$19>=E$20,"محجوزة","") -> 
C18: رقم الغرفة | D18: 210 | E18: 220 | F18: 230 | G18: 240 | H18: 250 | I18: 260 | J18: 270 | K18: 280 | L18: 290 | M18: 300
B19: الدور الثالث | C19: 10 | D19: =R$19 -> 0 | E19: =S$19 -> 0 | F19: 0 | G19: 0 | H19: 0 | I19: 0 | J19: 0 | K19: 0 | L19: 0 | M19: 0 | R19: =COUNTIF(البيانات!$C:$C,210) -> 0 | S19: =COUNTIF(البيانات!$C:$C,220) -> 0 | T19: =COUNTIF(البيانات!$C:$C,230) -> 0 | U19: =COUNTIF(البيانات!$C:$C,240) -> 0 | V19: =COUNTIF(البيانات!$C:$C,250) -> 0 | W19: =COUNTIF(البيانات!$C:$C,260) -> 0 | X19: =COUNTIF(البيانات!$C:$C,270) -> 0 | Y19: =COUNTIF(البيانات!$C:$C,280) -> 0 | Z19: =COUNTIF(البيانات!$C:$C,290) -> 0 | AA19: =COUNTIF(البيانات!$C:$C,300) -> 0
C20: عدد الاسرة | D20: 1 | E20: 1 | F20: 1 | G20: 2 | H20: 2 | I20: 2 | J20: 3 | K20: 3 | L20: 4 | M20: 4

Sheet البحث عن مفادر
E1: البحث عن مغادر
E2: اسم العميل | F2: رقم البطاقة او الجواز
E3: عوض
D8: اسم العميل | E8: رقم الحجرة | F8: تاريخ الدخول | G8: تاريخ الخروج | H8: رقم البطاقة او الجواز | I8: المهنة | J8: الجنسية | K8: عدد الايام

Sheet البحث عن عميل موجود
C2: البحث عن نزيل موجود
C4: الاسم | D4: غلى
C6: رقم الحجرة | D6: تاريخ الدخول
C7: =IFERROR(VLOOKUP($D$4,البيانات!$B$6:$D$1000,2,FALSE),"") -> 20 | D7: =IFERROR(VLOOKUP($D$4,البيانات!$B$6:$D$1000,3,FALSE),"") -> 2019-03-04

Sheet ارقام الغرف واسعارها
C3: قائمة الاسعار | H3: مكافآت وخصومات سلف | I3: شهر | J3: أغسطس
B5: م | C5: رقم الغرفة | D5: السعر للليلة الواحدة | E5: عدد الاسرة | F5: الموقع | H5: الاسم | I5: البيان | J5: المبلغ | K5: شهر
B6: =IF(C6="","",SUBTOTAL(3,$C$6:C6)) -> 1 | C6: 10 | D6: 10 | E6: 1 | F6: تطل على البحر | K6: =IF(H6="","",$J$3) ->  | O6: حاقز او مكافآت
B7: =IF(C7="","",SUBTOTAL(3,$C$6:C7)) -> 2 | C7: 20 | D7: 20 | E7: 1 | F7: تطل على البحر | K7: =IF(H7="","",$J$3) ->  | O7: سلف
B8: =IF(C8="","",SUBTOTAL(3,$C$6:C8)) -> 3 | C8: 30 | D8: 30 | E8: 1 | F8: تطل على البحر | O8: خصومات اخرى
B9: =IF(C9="","",SUBTOTAL(3,$C$6:C9)) -> 
B10: =IF(C10="","",SUBTOTAL(3,$C$6:C10)) -> 
B11: =IF(C11="","",SUBTOTAL(3,$C$6:C11)) -> 
B12: =IF(C12="","",SUBTOTAL(3,$C$6:C12)) -> 
B13: =IF(C13="","",SUBTOTAL(3,$C$6:C13)) -> 
B14: =IF(C14="","",SUBTOTAL(3,$C$6:C14)) -> 
B15: =IF(C15="","",SUBTOTAL(3,$C$6:C15)) -> 
B16: =IF(C16="","",SUBTOTAL(3,$C$6:C16)) -> 
B17: =IF(C17="","",SUBTOTAL(3,$C$6:C17)) -> 
B18: =IF(C18="","",SUBTOTAL(3,$C$6:C18)) -> 
B19: =IF(C19="","",SUBTOTAL(3,$C$6:C19)) -> 
B20: =IF(C20="","",SUBTOTAL(3,$C$6:C20)) -> 
B21: =IF(C21="","",SUBTOTAL(3,$C$6:C21)) -> 
B22: =IF(C22="","",SUBTOTAL(3,$C$6:C22)) -> 
B23: =IF(C23="","",SUBTOTAL(3,$C$6:C23)) -> 
B24: =IF(C24="","",SUBTOTAL(3,$C$6:C24)) -> 
B25: =IF(C25="","",SUBTOTAL(3,$C$6:C25)) -> 
B26: =IF(C26="","",SUBTOTAL(3,$C$6:C26)) -> 
B27: =IF(C27="","",SUBTOTAL(3,$C$6:C27)) -> 
B28: =IF(C28="","",SUBTOTAL(3,$C$6:C28)) -> 
B29: =IF(C29="","",SUBTOTAL(3,$C$6:C29)) -> 
B30: =IF(C30="","",SUBTOTAL(3,$C$6:C30)) -> 
B31: =IF(C31="","",SUBTOTAL(3,$C$6:C31)) -> 
B32: =IF(C32="","",SUBTOTAL(3,$C$6:C32)) -> 
B33: =IF(C33="","",SUBTOTAL(3,$C$6:C33)) -> 
B34: =IF(C34="","",SUBTOTAL(3,$C$6:C34)) -> 
B35: =IF(C35="","",SUBTOTAL(3,$C$6:C35)) -> 
K71: =IF(H71="","",$J$3) -> 
K135: =IF(H135="","",$J$3) -> 
K199: =IF(H199="","",$J$3) -> 
K263: =IF(H263="","",$J$3) -> 
K327: =IF(H327="","",$J$3) -> 

Sheet راتب
H1: عدد ايام العمل هذا الشهر | J1: 30 | K1: يوم
C2: للرئيسية | H2: راتب شهر | J2: أكتوبر | K2: 2019
D4: =SUM(D$6:D$25) -> 24000 | E4: 0 | F4: 0 | G4: 0 | H4: 0 | I4: 0 | J4: 0 | K4: 0 | L4: =SUM(L$6:L$25) -> 24000
B5: كود العامل | C5: الاسم | D5: الاساسى | E5: حاقز او مكافآت | F5: اضافى | G5: سلف | H5: خصومات اخرى | I5: تأخير | J5: خصم غياب | K5: جملة خصم | L5: الصافى | M5: التوقيع بالاستلام | O5: غياب | W5: يناير | X5: 2019
B6: 10 | C6: عوض1 | D6: 5000 | E6: =SUMIFS('ارقام الغرف واسعارها'!$J:$J,'ارقام الغرف واسعارها'!$H:$H,راتب!C6,'ارقام الغرف واسعارها'!$I:$I,راتب!$E$5,'ارقام الغرف واسعارها'!$K:$K,راتب!$J$2) -> 0 | F6: =SUMIFS('مرحل حضور'!$L:$L,'مرحل حضور'!$E:$E,راتب!C6,'مرحل حضور'!$N:$N,راتب!$J$2) -> 0 | G6: =SUMIFS('ارقام الغرف واسعارها'!$J:$J,'ارقام الغرف واسعارها'!$H:$H,راتب!C6,'ارقام الغرف واسعارها'!$I:$I,راتب!$G$5,'ارقام الغرف واسعارها'!$K:$K,راتب!$J$2) -> 0 | H6: =SUMIFS('ارقام الغرف واسعارها'!$J:$J,'ارقام الغرف واسعارها'!$H:$H,راتب!C6,'ارقام الغرف واسعارها'!$I:$I,راتب!$H$5,'ارقام الغرف واسعارها'!$K:$K,راتب!$J$2) -> 0 | I6: =SUMIFS('مرحل حضور'!$K:$K,'مرحل حضور'!$E:$E,راتب!C6,'مرحل حضور'!$N:$N,راتب!$J$2) -> 0 | J6: =D6/$J$1*O6 -> 0 | K6: =I6+J6+G6+H6 -> 0 | L6: =D6+E6+F6-K6 -> 5000 | O6: =SUMIFS('مرحل حضور'!$O:$O,'مرحل حضور'!$E:$E,راتب!C6,'مرحل حضور'!$N:$N,راتب!$J$2) -> 0 | V6: 20 | W6: فبراير | X6: 2020
B7: 20 | C7: عوض2 | D7: 1000 | E7: =SUMIFS('ارقام الغرف واسعارها'!$J:$J,'ارقام الغرف واسعارها'!$H:$H,راتب!C7,'ارقام الغرف واسعارها'!$I:$I,راتب!$E$5,'ارقام الغرف واسعارها'!$K:$K,راتب!$J$2) -> 0 | F7: =SUMIFS('مرحل حضور'!$L:$L,'مرحل حضور'!$E:$E,راتب!C7,'مرحل حضور'!$N:$N,راتب!$J$2) -> 0 | G7: =SUMIFS('ارقام الغرف واسعارها'!$J:$J,'ارقام الغرف واسعارها'!$H:$H,راتب!C7,'ارقام الغرف واسعارها'!$I:$I,راتب!$G$5,'ارقام الغرف واسعارها'!$K:$K,راتب!$J$2) -> 0 | H7: =SUMIFS('ارقام الغرف واسعارها'!$J:$J,'ارقام الغرف واسعارها'!$H:$H,راتب!C7,'ارقام الغرف واسعارها'!$I:$I,راتب!$H$5,'ارقام الغرف واسعارها'!$K:$K,راتب!$J$2) -> 0 | I7: =SUMIFS('مرحل حضور'!$K:$K,'مرحل حضور'!$E:$E,راتب!C7,'مرحل حضور'!$N:$N,راتب!$J$2) -> 0 | J7: 0 | K7: =I7+J7+G7+H7 -> 0 | L7: 1000 | O7: =SUMIFS('مرحل حضور'!$O:$O,'مرحل حضور'!$E:$E,راتب!C7,'مرحل حضور'!$N:$N,راتب!$J$2) -> 0 | V7: 21 | W7: مارس | X7: 2021
B8: 30 | C8: عوض3 | D8: 1000 | E8: =SUMIFS('ارقام الغرف واسعارها'!$J:$J,'ارقام الغرف واسعارها'!$H:$H,راتب!C8,'ارقام الغرف واسعارها'!$I:$I,راتب!$E$5,'ارقام الغرف واسعارها'!$K:$K,راتب!$J$2) -> 0 | F8: =SUMIFS('مرحل حضور'!$L:$L,'مرحل حضور'!$E:$E,راتب!C8,'مرحل حضور'!$N:$N,راتب!$J$2) -> 0 | G8: =SUMIFS('ارقام الغرف واسعارها'!$J:$J,'ارقام الغرف واسعارها'!$H:$H,راتب!C8,'ارقام الغرف واسعارها'!$I:$I,راتب!$G$5,'ارقام الغرف واسعارها'!$K:$K,راتب!$J$2) -> 0 | H8: =SUMIFS('ارقام الغرف واسعارها'!$J:$J,'ارقام الغرف واسعارها'!$H:$H,راتب!C8,'ارقام الغرف واسعارها'!$I:$I,راتب!$H$5,'ارقام الغرف واسعارها'!$K:$K,راتب!$J$2) -> 0 | I8: =SUMIFS('مرحل حضور'!$K:$K,'مرحل حضور'!$E:$E,راتب!C8,'مرحل حضور'!$N:$N,راتب!$J$2) -> 0 | J8: 0 | K8: 0 | L8: 1000 | O8: =SUMIFS('مرحل حضور'!$O:$O,'مرحل حضور'!$E:$E,راتب!C8,'مرحل حضور'!$N:$N,راتب!$J$2) -> 0 | V8: 22 | W8: أبريل | X8: 2022
B9: 40 | C9: عوض4 | D9: 1000 | E9: =SUMIFS('ارقام الغرف واسعارها'!$J:$J,'ارقام الغرف واسعارها'!$H:$H,راتب!C9,'ارقام الغرف واسعارها'!$I:$I,راتب!$E$5,'ارقام الغرف واسعارها'!$K:$K,راتب!$J$2) -> 0 | F9: =SUMIFS('مرحل حضور'!$L:$L,'مرحل حضور'!$E:$E,راتب!C9,'مرحل حضور'!$N:$N,راتب!$J$2) -> 0 | G9: =SUMIFS('ارقام الغرف واسعارها'!$J:$J,'ارقام الغرف واسعارها'!$H:$H,راتب!C9,'ارقام الغرف واسعارها'!$I:$I,راتب!$G$5,'ارقام الغرف واسعارها'!$K:$K,راتب!$J$2) -> 0 | H9: =SUMIFS('ارقام الغرف واسعارها'!$J:$J,'ارقام الغرف واسعارها'!$H:$H,راتب!C9,'ارقام الغرف واسعارها'!$I:$I,راتب!$H$5,'ارقام الغرف واسعارها'!$K:$K,راتب!$J$2) -> 0 | I9: =SUMIFS('مرحل حضور'!$K:$K,'مرحل حضور'!$E:$E,راتب!C9,'مرحل حضور'!$N:$N,راتب!$J$2) -> 0 | J9: 0 | K9: 0 | L9: 1000 | O9: =SUMIFS('مرحل حضور'!$O:$O,'مرحل حضور'!$E:$E,راتب!C9,'مرحل حضور'!$N:$N,راتب!$J$2) -> 0 | V9: 23 | W9: مايو | X9: 2023
B10: 50 | C10: عوض5 | D10: 1000 | E10: =SUMIFS('ارقام الغرف واسعارها'!$J:$J,'ارقام الغرف واسعارها'!$H:$H,راتب!C10,'ارقام الغرف واسعارها'!$I:$I,راتب!$E$5,'ارقام الغرف واسعارها'!$K:$K,راتب!$J$2) -> 0 | F10: =SUMIFS('مرحل حضور'!$L:$L,'مرحل حضور'!$E:$E,راتب!C10,'مرحل حضور'!$N:$N,راتب!$J$2) -> 0 | G10: =SUMIFS('ارقام الغرف واسعارها'!$J:$J,'ارقام الغرف واسعارها'!$H:$H,راتب!C10,'ارقام الغرف واسعارها'!$I:$I,راتب!$G$5,'ارقام الغرف واسعارها'!$K:$K,راتب!$J$2) -> 0 | H10: =SUMIFS('ارقام الغرف واسعارها'!$J:$J,'ارقام الغرف واسعارها'!$H:$H,راتب!C10,'ارقام الغرف واسعارها'!$I:$I,راتب!$H$5,'ارقام الغرف واسعارها'!$K:$K,راتب!$J$2) -> 0 | I10: =SUMIFS('مرحل حضور'!$K:$K,'مرحل حضور'!$E:$E,راتب!C10,'مرحل حضور'!$N:$N,راتب!$J$2) -> 0 | J10: 0 | K10: 0 | L10: 1000 | O10: =SUMIFS('مرحل حضور'!$O:$O,'مرحل حضور'!$E:$E,راتب!C10,'مرحل حضور'!$N:$N,راتب!$J$2) -> 0 | V10: 24 | W10: يونيو | X10: 2024
B11: 60 | C11: عوض6 | D11: 1000 | E11: =SUMIFS('ارقام الغرف واسعارها'!$J:$J,'ارقام الغرف واسعارها'!$H:$H,راتب!C11,'ارقام الغرف واسعارها'!$I:$I,راتب!$E$5,'ارقام الغرف واسعارها'!$K:$K,راتب!$J$2) -> 0 | F11: =SUMIFS('مرحل حضور'!$L:$L,'مرحل حضور'!$E:$E,راتب!C11,'مرحل حضور'!$N:$N,راتب!$J$2) -> 0 | G11: =SUMIFS('ارقام الغرف واسعارها'!$J:$J,'ارقام الغرف واسعارها'!$H:$H,راتب!C11,'ارقام الغرف واسعارها'!$I:$I,راتب!$G$5,'ارقام الغرف واسعارها'!$K:$K,راتب!$J$2) -> 0 | H11: =SUMIFS('ارقام الغرف واسعارها'!$J:$J,'ارقام الغرف واسعارها'!$H:$H,راتب!C11,'ارقام الغرف واسعارها'!$I:$I,راتب!$H$5,'ارقام الغرف واسعارها'!$K:$K,راتب!$J$2) -> 0 | I11: =SUMIFS('مرحل حضور'!$K:$K,'مرحل حضور'!$E:$E,راتب!C11,'مرحل حضور'!$N:$N,راتب!$J$2) -> 0 | J11: 0 | K11: 0 | L11: 1000 | O11: =SUMIFS('مرحل حضور'!$O:$O,'مرحل حضور'!$E:$E,راتب!C11,'مرحل حضور'!$N:$N,راتب!$J$2) -> 0 | V11: 25 | W11: يوليو | X11: 2025
B12: 70 | C12: عوض7 | D12: 1000 | E12: =SUMIFS('ارقام الغرف واسعارها'!$J:$J,'ارقام الغرف واسعارها'!$H:$H,راتب!C12,'ارقام الغرف واسعارها'!$I:$I,راتب!$E$5,'ارقام الغرف واسعارها'!$K:$K,راتب!$J$2) -> 0 | F12: =SUMIFS('مرحل حضور'!$L:$L,'مرحل حضور'!$E:$E,راتب!C12,'مرحل حضور'!$N:$N,راتب!$J$2) -> 0 | G12: =SUMIFS('ارقام الغرف واسعارها'!$J:$J,'ارقام الغرف واسعارها'!$H:$H,راتب!C12,'ارقام الغرف واسعارها'!$I:$I,راتب!$G$5,'ارقام الغرف واسعارها'!$K:$K,راتب!$J$2) -> 0 | H12: =SUMIFS('ارقام الغرف واسعارها'!$J:$J,'ارقام الغرف واسعارها'!$H:$H,راتب!C12,'ارقام الغرف واسعارها'!$I:$I,راتب!$H$5,'ارقام الغرف واسعارها'!$K:$K,راتب!$J$2) -> 0 | I12: =SUMIFS('مرحل حضور'!$K:$K,'مرحل حضور'!$E:$E,راتب!C12,'مرحل حضور'!$N:$N,راتب!$J$2) -> 0 | J12: 0 | K12: 0 | L12: 1000 | O12: =SUMIFS('مرحل حضور'!$O:$O,'مرحل حضور'!$E:$E,راتب!C12,'مرحل حضور'!$N:$N,راتب!$J$2) -> 0 | V12: 26 | W12: أغسطس | X12: 2026
B13: 80 | C13: عوض8 | D13: 1000 | E13: =SUMIFS('ارقام الغرف واسعارها'!$J:$J,'ارقام الغرف واسعارها'!$H:$H,راتب!C13,'ارقام الغرف واسعارها'!$I:$I,راتب!$E$5,'ارقام الغرف واسعارها'!$K:$K,راتب!$J$2) -> 0 | F13: =SUMIFS('مرحل حضور'!$L:$L,'مرحل حضور'!$E:$E,راتب!C13,'مرحل حضور'!$N:$N,راتب!$J$2) -> 0 | G13: =SUMIFS('ارقام الغرف واسعارها'!$J:$J,'ارقام الغرف واسعارها'!$H:$H,راتب!C13,'ارقام الغرف واسعارها'!$I:$I,راتب!$G$5,'ارقام الغرف واسعارها'!$K:$K,راتب!$J$2) -> 0 | H13: =SUMIFS('ارقام الغرف واسعارها'!$J:$J,'ارقام الغرف واسعارها'!$H:$H,راتب!C13,'ارقام الغرف واسعارها'!$I:$I,راتب!$H$5,'ارقام الغرف واسعارها'!$K:$K,راتب!$J$2) -> 0 | I13: =SUMIFS('مرحل حضور'!$K:$K,'مرحل حضور'!$E:$E,راتب!C13,'مرحل حضور'!$N:$N,راتب!$J$2) -> 0 | J13: 0 | K13: 0 | L13: 1000 | O13: =SUMIFS('مرحل حضور'!$O:$O,'مرحل حضور'!$E:$E,راتب!C13,'مرحل حضور'!$N:$N,راتب!$J$2) -> 0 | V13: 27 | W13: سبتمبر | X13: 2027
B14: 90 | C14: عوض9 | D14: 1000 | E14: =SUMIFS('ارقام الغرف واسعارها'!$J:$J,'ارقام الغرف واسعارها'!$H:$H,راتب!C14,'ارقام الغرف واسعارها'!$I:$I,راتب!$E$5,'ارقام الغرف واسعارها'!$K:$K,راتب!$J$2) -> 0 | F14: =SUMIFS('مرحل حضور'!$L:$L,'مرحل حضور'!$E:$E,راتب!C14,'مرحل حضور'!$N:$N,راتب!$J$2) -> 0 | G14: =SUMIFS('ارقام الغرف واسعارها'!$J:$J,'ارقام الغرف واسعارها'!$H:$H,راتب!C14,'ارقام الغرف واسعارها'!$I:$I,راتب!$G$5,'ارقام الغرف واسعارها'!$K:$K,راتب!$J$2) -> 0 | H14: =SUMIFS('ارقام الغرف واسعارها'!$J:$J,'ارقام الغرف واسعارها'!$H:$H,راتب!C14,'ارقام الغرف واسعارها'!$I:$I,راتب!$H$5,'ارقام الغرف واسعارها'!$K:$K,راتب!$J$2) -> 0 | I14: =SUMIFS('مرحل حضور'!$K:$K,'مرحل حضور'!$E:$E,راتب!C14,'مرحل حضور'!$N:$N,راتب!$J$2) -> 0 | J14: 0 | K14: 0 | L14: 1000 | O14: =SUMIFS('مرحل حضور'!$O:$O,'مرحل حضور'!$E:$E,راتب!C14,'مرحل حضور'!$N:$N,راتب!$J$2) -> 0 | V14: 28 | W14: أكتوبر | X14: 2028
B15: 100 | C15: عوض10 | D15: 1000 | E15: =SUMIFS('ارقام الغرف واسعارها'!$J:$J,'ارقام الغرف واسعارها'!$H:$H,راتب!C15,'ارقام الغرف واسعارها'!$I:$I,راتب!$E$5,'ارقام الغرف واسعارها'!$K:$K,راتب!$J$2) -> 0 | F15: =SUMIFS('مرحل حضور'!$L:$L,'مرحل حضور'!$E:$E,راتب!C15,'مرحل حضور'!$N:$N,راتب!$J$2) -> 0 | G15: =SUMIFS('ارقام الغرف واسعارها'!$J:$J,'ارقام الغرف واسعارها'!$H:$H,راتب!C15,'ارقام الغرف واسعارها'!$I:$I,راتب!$G$5,'ارقام الغرف واسعارها'!$K:$K,راتب!$J$2) -> 0 | H15: =SUMIFS('ارقام الغرف واسعارها'!$J:$J,'ارقام الغرف واسعارها'!$H:$H,راتب!C15,'ارقام الغرف واسعارها'!$I:$I,راتب!$H$5,'ارقام الغرف واسعارها'!$K:$K,راتب!$J$2) -> 0 | I15: =SUMIFS('مرحل حضور'!$K:$K,'مرحل حضور'!$E:$E,راتب!C15,'مرحل حضور'!$N:$N,راتب!$J$2) -> 0 | J15: 0 | K15: 0 | L15: 1000 | O15: =SUMIFS('مرحل حضور'!$O:$O,'مرحل حضور'!$E:$E,راتب!C15,'مرحل حضور'!$N:$N,راتب!$J$2) -> 0 | V15: 29 | W15: نوفمبر | X15: 2029
B16: 110 | C16: عوض11 | D16: 1000 | E16: =SUMIFS('ارقام الغرف واسعارها'!$J:$J,'ارقام الغرف واسعارها'!$H:$H,راتب!C16,'ارقام الغرف واسعارها'!$I:$I,راتب!$E$5,'ارقام الغرف واسعارها'!$K:$K,راتب!$J$2) -> 0 | F16: =SUMIFS('مرحل حضور'!$L:$L,'مرحل حضور'!$E:$E,راتب!C16,'مرحل حضور'!$N:$N,راتب!$J$2) -> 0 | G16: =SUMIFS('ارقام الغرف واسعارها'!$J:$J,'ارقام الغرف واسعارها'!$H:$H,راتب!C16,'ارقام الغرف واسعارها'!$I:$I,راتب!$G$5,'ارقام الغرف واسعارها'!$K:$K,راتب!$J$2) -> 0 | H16: =SUMIFS('ارقام الغرف واسعارها'!$J:$J,'ارقام الغرف واسعارها'!$H:$H,راتب!C16,'ارقام الغرف واسعارها'!$I:$I,راتب!$H$5,'ارقام الغرف واسعارها'!$K:$K,راتب!$J$2) -> 0 | I16: =SUMIFS('مرحل حضور'!$K:$K,'مرحل حضور'!$E:$E,راتب!C16,'مرحل حضور'!$N:$N,راتب!$J$2) -> 0 | J16: 0 | K16: 0 | L16: 1000 | O16: =SUMIFS('مرحل حضور'!$O:$O,'مرحل حضور'!$E:$E,راتب!C16,'مرحل حضور'!$N:$N,راتب!$J$2) -> 0 | V16: 30 | W16: ديسمبر | X16: 2030
B17: 120 | C17: عوض12 | D17: 1000 | E17: =SUMIFS('ارقام الغرف واسعارها'!$J:$J,'ارقام الغرف واسعارها'!$H:$H,راتب!C17,'ارقام الغرف واسعارها'!$I:$I,راتب!$E$5,'ارقام الغرف واسعارها'!$K:$K,راتب!$J$2) -> 0 | F17: =SUMIFS('مرحل حضور'!$L:$L,'مرحل حضور'!$E:$E,راتب!C17,'مرحل حضور'!$N:$N,راتب!$J$2) -> 0 | G17: =SUMIFS('ارقام الغرف واسعارها'!$J:$J,'ارقام الغرف واسعارها'!$H:$H,راتب!C17,'ارقام الغرف واسعارها'!$I:$I,راتب!$G$5,'ارقام الغرف واسعارها'!$K:$K,راتب!$J$2) -> 0 | H17: =SUMIFS('ارقام الغرف واسعارها'!$J:$J,'ارقام الغرف واسعارها'!$H:$H,راتب!C17,'ارقام الغرف واسعارها'!$I:$I,راتب!$H$5,'ارقام الغرف واسعارها'!$K:$K,راتب!$J$2) -> 0 | I17: =SUMIFS('مرحل حضور'!$K:$K,'مرحل حضور'!$E:$E,راتب!C17,'مرحل حضور'!$N:$N,راتب!$J$2) -> 0 | J17: 0 | K17: 0 | L17: 1000 | O17: =SUMIFS('مرحل حضور'!$O:$O,'مرحل حضور'!$E:$E,راتب!C17,'مرحل حضور'!$N:$N,راتب!$J$2) -> 0 | V17: 31
B18: 130 | C18: عوض13 | D18: 1000 | E18: =SUMIFS('ارقام الغرف واسعارها'!$J:$J,'ارقام الغرف واسعارها'!$H:$H,راتب!C18,'ارقام الغرف واسعارها'!$I:$I,راتب!$E$5,'ارقام الغرف واسعارها'!$K:$K,راتب!$J$2) -> 0 | F18: =SUMIFS('مرحل حضور'!$L:$L,'مرحل حضور'!$E:$E,راتب!C18,'مرحل حضور'!$N:$N,راتب!$J$2) -> 0 | G18: =SUMIFS('ارقام الغرف واسعارها'!$J:$J,'ارقام الغرف واسعارها'!$H:$H,راتب!C18,'ارقام الغرف واسعارها'!$I:$I,راتب!$G$5,'ارقام الغرف واسعارها'!$K:$K,راتب!$J$2) -> 0 | H18: =SUMIFS('ارقام الغرف واسعارها'!$J:$J,'ارقام الغرف واسعارها'!$H:$H,راتب!C18,'ارقام الغرف واسعارها'!$I:$I,راتب!$H$5,'ارقام الغرف واسعارها'!$K:$K,راتب!$J$2) -> 0 | I18: =SUMIFS('مرحل حضور'!$K:$K,'مرحل حضور'!$E:$E,راتب!C18,'مرحل حضور'!$N:$N,راتب!$J$2) -> 0 | J18: 0 | K18: 0 | L18: 1000 | O18: =SUMIFS('مرحل حضور'!$O:$O,'مرحل حضور'!$E:$E,راتب!C18,'مرحل حضور'!$N:$N,راتب!$J$2) -> 0
B19: 140 | C19: عوض14 | D19: 1000 | E19: =SUMIFS('ارقام الغرف واسعارها'!$J:$J,'ارقام الغرف واسعارها'!$H:$H,راتب!C19,'ارقام الغرف واسعارها'!$I:$I,راتب!$E$5,'ارقام الغرف واسعارها'!$K:$K,راتب!$J$2) -> 0 | F19: =SUMIFS('مرحل حضور'!$L:$L,'مرحل حضور'!$E:$E,راتب!C19,'مرحل حضور'!$N:$N,راتب!$J$2) -> 0 | G19: =SUMIFS('ارقام الغرف واسعارها'!$J:$J,'ارقام الغرف واسعارها'!$H:$H,راتب!C19,'ارقام الغرف واسعارها'!$I:$I,راتب!$G$5,'ارقام الغرف واسعارها'!$K:$K,راتب!$J$2) -> 0 | H19: =SUMIFS('ارقام الغرف واسعارها'!$J:$J,'ارقام الغرف واسعارها'!$H:$H,راتب!C19,'ارقام الغرف واسعارها'!$I:$I,راتب!$H$5,'ارقام الغرف واسعارها'!$K:$K,راتب!$J$2) -> 0 | I19: =SUMIFS('مرحل حضور'!$K:$K,'مرحل حضور'!$E:$E,راتب!C19,'مرحل حضور'!$N:$N,راتب!$J$2) -> 0 | J19: 0 | K19: 0 | L19: 1000 | O19: =SUMIFS('مرحل حضور'!$O:$O,'مرحل حضور'!$E:$E,راتب!C19,'مرحل حضور'!$N:$N,راتب!$J$2) -> 0
B20: 150 | C20: عوض15 | D20: 1000 | E20: =SUMIFS('ارقام الغرف واسعارها'!$J:$J,'ارقام الغرف واسعارها'!$H:$H,راتب!C20,'ارقام الغرف واسعارها'!$I:$I,راتب!$E$5,'ارقام الغرف واسعارها'!$K:$K,راتب!$J$2) -> 0 | F20: =SUMIFS('مرحل حضور'!$L:$L,'مرحل حضور'!$E:$E,راتب!C20,'مرحل حضور'!$N:$N,راتب!$J$2) -> 0 | G20: =SUMIFS('ارقام الغرف واسعارها'!$J:$J,'ارقام الغرف واسعارها'!$H:$H,راتب!C20,'ارقام الغرف واسعارها'!$I:$I,راتب!$G$5,'ارقام الغرف واسعارها'!$K:$K,راتب!$J$2) -> 0 | H20: =SUMIFS('ارقام الغرف واسعارها'!$J:$J,'ارقام الغرف واسعارها'!$H:$H,راتب!C20,'ارقام الغرف واسعارها'!$I:$I,راتب!$H$5,'ارقام الغرف واسعارها'!$K:$K,راتب!$J$2) -> 0 | I20: =SUMIFS('مرحل حضور'!$K:$K,'مرحل حضور'!$E:$E,راتب!C20,'مرحل حضور'!$N:$N,راتب!$J$2) -> 0 | J20: 0 | K20: =I20+J20+G20+H20 -> 0 | L20: =D20+E20+F20-K20 -> 1000 | O20: =SUMIFS('مرحل حضور'!$O:$O,'مرحل حضور'!$E:$E,راتب!C20,'مرحل حضور'!$N:$N,راتب!$J$2) -> 0
B21: 160 | C21: عوض16 | D21: 1000 | E21: =SUMIFS('ارقام الغرف واسعارها'!$J:$J,'ارقام الغرف واسعارها'!$H:$H,راتب!C21,'ارقام الغرف واسعارها'!$I:$I,راتب!$E$5,'ارقام الغرف واسعارها'!$K:$K,راتب!$J$2) -> 0 | F21: =SUMIFS('مرحل حضور'!$L:$L,'مرحل حضور'!$E:$E,راتب!C21,'مرحل حضور'!$N:$N,راتب!$J$2) -> 0 | G21: =SUMIFS('ارقام الغرف واسعارها'!$J:$J,'ارقام الغرف واسعارها'!$H:$H,راتب!C21,'ارقام الغرف واسعارها'!$I:$I,راتب!$G$5,'ارقام الغرف واسعارها'!$K:$K,راتب!$J$2) -> 0 | H21: =SUMIFS('ارقام الغرف واسعارها'!$J:$J,'ارقام الغرف واسعارها'!$H:$H,راتب!C21,'ارقام الغرف واسعارها'!$I:$I,راتب!$H$5,'ارقام الغرف واسعارها'!$K:$K,راتب!$J$2) -> 0 | I21: =SUMIFS('مرحل حضور'!$K:$K,'مرحل حضور'!$E:$E,راتب!C21,'مرحل حضور'!$N:$N,راتب!$J$2) -> 0 | J21: 0 | K21: 0 | L21: 1000 | O21: =SUMIFS('مرحل حضور'!$O:$O,'مرحل حضور'!$E:$E,راتب!C21,'مرحل حضور'!$N:$N,راتب!$J$2) -> 0
B22: 170 | C22: عوض17 | D22: 1000 | E22: =SUMIFS('ارقام الغرف واسعارها'!$J:$J,'ارقام الغرف واسعارها'!$H:$H,راتب!C22,'ارقام الغرف واسعارها'!$I:$I,راتب!$E$5,'ارقام الغرف واسعارها'!$K:$K,راتب!$J$2) -> 0 | F22: =SUMIFS('مرحل حضور'!$L:$L,'مرحل حضور'!$E:$E,راتب!C22,'مرحل حضور'!$N:$N,راتب!$J$2) -> 0 | G22: =SUMIFS('ارقام الغرف واسعارها'!$J:$J,'ارقام الغرف واسعارها'!$H:$H,راتب!C22,'ارقام الغرف واسعارها'!$I:$I,راتب!$G$5,'ارقام الغرف واسعارها'!$K:$K,راتب!$J$2) -> 0 | H22: =SUMIFS('ارقام الغرف واسعارها'!$J:$J,'ارقام الغرف واسعارها'!$H:$H,راتب!C22,'ارقام الغرف واسعارها'!$I:$I,راتب!$H$5,'ارقام الغرف واسعارها'!$K:$K,راتب!$J$2) -> 0 | I22: =SUMIFS('مرحل حضور'!$K:$K,'مرحل حضور'!$E:$E,راتب!C22,'مرحل حضور'!$N:$N,راتب!$J$2) -> 0 | J22: 0 | K22: 0 | L22: 1000 | O22: =SUMIFS('مرحل حضور'!$O:$O,'مرحل حضور'!$E:$E,راتب!C22,'مرحل حضور'!$N:$N,راتب!$J$2) -> 0
B23: 180 | C23: عوض18 | D23: 1000 | E23: =SUMIFS('ارقام الغرف واسعارها'!$J:$J,'ارقام الغرف واسعارها'!$H:$H,راتب!C23,'ارقام الغرف واسعارها'!$I:$I,راتب!$E$5,'ارقام الغرف واسعارها'!$K:$K,راتب!$J$2) -> 0 | F23: =SUMIFS('مرحل حضور'!$L:$L,'مرحل حضور'!$E:$E,راتب!C23,'مرحل حضور'!$N:$N,راتب!$J$2) -> 0 | G23: =SUMIFS('ارقام الغرف واسعارها'!$J:$J,'ارقام الغرف واسعارها'!$H:$H,راتب!C23,'ارقام الغرف واسعارها'!$I:$I,راتب!$G$5,'ارقام الغرف واسعارها'!$K:$K,راتب!$J$2) -> 0 | H23: =SUMIFS('ارقام الغرف واسعارها'!$J:$J,'ارقام الغرف واسعارها'!$H:$H,راتب!C23,'ارقام الغرف واسعارها'!$I:$I,راتب!$H$5,'ارقام الغرف واسعارها'!$K:$K,راتب!$J$2) -> 0 | I23: =SUMIFS('مرحل حضور'!$K:$K,'مرحل حضور'!$E:$E,راتب!C23,'مرحل حضور'!$N:$N,راتب!$J$2) -> 0 | J23: 0 | K23: 0 | L23: 1000 | O23: =SUMIFS('مرحل حضور'!$O:$O,'مرحل حضور'!$E:$E,راتب!C23,'مرحل حضور'!$N:$N,راتب!$J$2) -> 0
B24: 190 | C24: عوض19 | D24: 1000 | E24: =SUMIFS('ارقام الغرف واسعارها'!$J:$J,'ارقام الغرف واسعارها'!$H:$H,راتب!C24,'ارقام الغرف واسعارها'!$I:$I,راتب!$E$5,'ارقام الغرف واسعارها'!$K:$K,راتب!$J$2) -> 0 | F24: =SUMIFS('مرحل حضور'!$L:$L,'مرحل حضور'!$E:$E,راتب!C24,'مرحل حضور'!$N:$N,راتب!$J$2) -> 0 | G24: =SUMIFS('ارقام الغرف واسعارها'!$J:$J,'ارقام الغرف واسعارها'!$H:$H,راتب!C24,'ارقام الغرف واسعارها'!$I:$I,راتب!$G$5,'ارقام الغرف واسعارها'!$K:$K,راتب!$J$2) -> 0 | H24: =SUMIFS('ارقام الغرف واسعارها'!$J:$J,'ارقام الغرف واسعارها'!$H:$H,راتب!C24,'ارقام الغرف واسعارها'!$I:$I,راتب!$H$5,'ارقام الغرف واسعارها'!$K:$K,راتب!$J$2) -> 0 | I24: =SUMIFS('مرحل حضور'!$K:$K,'مرحل حضور'!$E:$E,راتب!C24,'مرحل حضور'!$N:$N,راتب!$J$2) -> 0 | J24: 0 | K24: 0 | L24: 1000 | O24: =SUMIFS('مرحل حضور'!$O:$O,'مرحل حضور'!$E:$E,راتب!C24,'مرحل حضور'!$N:$N,راتب!$J$2) -> 0
B25: 200 | C25: عوض20 | D25: 1000 | E25: =SUMIFS('ارقام الغرف واسعارها'!$J:$J,'ارقام الغرف واسعارها'!$H:$H,راتب!C25,'ارقام الغرف واسعارها'!$I:$I,راتب!$E$5,'ارقام الغرف واسعارها'!$K:$K,راتب!$J$2) -> 0 | F25: =SUMIFS('مرحل حضور'!$L:$L,'مرحل حضور'!$E:$E,راتب!C25,'مرحل حضور'!$N:$N,راتب!$J$2) -> 0 | G25: =SUMIFS('ارقام الغرف واسعارها'!$J:$J,'ارقام الغرف واسعارها'!$H:$H,راتب!C25,'ارقام الغرف واسعارها'!$I:$I,راتب!$G$5,'ارقام الغرف واسعارها'!$K:$K,راتب!$J$2) -> 0 | H25: =SUMIFS('ارقام الغرف واسعارها'!$J:$J,'ارقام الغرف واسعارها'!$H:$H,راتب!C25,'ارقام الغرف واسعارها'!$I:$I,راتب!$H$5,'ارقام الغرف واسعارها'!$K:$K,راتب!$J$2) -> 0 | I25: =SUMIFS('مرحل حضور'!$K:$K,'مرحل حضور'!$E:$E,راتب!C25,'مرحل حضور'!$N:$N,راتب!$J$2) -> 0 | J25: 0 | K25: 0 | L25: 1000 | O25: =SUMIFS('مرحل حضور'!$O:$O,'مرحل حضور'!$E:$E,راتب!C25,'مرحل حضور'!$N:$N,راتب!$J$2) -> 0

Sheet الحساب
B2: فاتورة
B3: لوكاندة | C3: الرشيدى | D3: ب . ض | H3: ضريبة سياحة | I3: 0.05 | K3: تم السداد ....مع خالص الامنيات
B4: مطلوب من السيد | C4: غلى | H4: ضريبة خدمة | I4: 0.04 | K4: لم يتم السداد
B5: التاريخ | C5: =TODAY() -> 2019-10-11
B6: المدة من | C6: =VLOOKUP($C$4,البيانات!$B$6:$R$18,3,0) -> 2019-03-04 | D6: ملاحظات
B7: الى | C7: =VLOOKUP($C$4,البيانات!$B$6:$R$18,4,0) -> 2019-06-04 | D7: تم السداد ....مع خالص الامنيات
B8: رقم الحجرة | C8: =VLOOKUP($C$4,البيانات!$B$6:$R$18,2,0) -> 20
B9: عدد الليالى | C9: =VLOOKUP($C$4,البيانات!$B$6:$R$18,12,0) -> 92
B10: سعر الحجرة فى الليلة | C10: =VLOOKUP($C$4,البيانات!$B$6:$R$18,13,0) -> 20
B11: اجر الليالى | C11: =VLOOKUP($C$4,البيانات!$B$6:$R$18,14,0) -> 1840
B12: تكاليف وجبات | C12: =VLOOKUP($C$4,البيانات!$B$6:$R$18,16,0) -> 36796320
B13: جملة | C13: =C11+C12 -> 36798160
B14: ضريبة سياحة | C14: =C13*I3 -> 1839908 | D14: =CH_N_TO_TEXT(C16) -> فقط أربعون مليون و مائة وتسعة ألف وتسعمائة وأربعة وتسعين جنيه مصرى لاغير
B15: ضريبة خدمة | C15: =C13*I4 -> 1471926.4
B16: اجمالى المطلوب | C16: =C13+(C14+C15) -> 40109994.4
C18: المسئول /
C19: يعتمد /

Sheet الرئيسية
D1: 11
C8: تعليمات | E8: =TODAY() -> 2019-10-11
E23: برمجة / عوض كارو ت: 011117771092

Sheet ورقة1
B2: اسم العميل فى الحجرة
D5: رقم الحجرة
D6: 60
C9: اسم العميل | D9: رقم الحجرة
C10: عوض | D10: 60
C11: عوض محمد محمود محمود | D11: 60
C12: عوض91 | D12: 60
C13: عوض60 | D13: 60

Sheet حضور وانصراف
A1: مهم جدا | C1: غير | F1: بداية العمل الرسمى | G1: =IF(C2="صباحى",P7,IF(C2="مسائى",P115)) -> 17:00:00 | I1: =IF(C2="صباحى",P103,IF(C2="مسائى",P199)) -> 1 | J1: نهاية العمل الرسمى
C2: مسائى | F2: اجر الساعة | G2: 30 | I2: 00:10:00 | J2: سماح التأخير | S2: صباحى
F3: الاضافى | G3: 1.5 | S3: مسائى
C4: =TODAY() -> 2019-10-11
A5: مسلسل | B5: كود | C5: التاريخ | D5: الاسم | E5: ساعة الحضور | F5: ساعة الانصراف | G5: تأخير | H5: اذن خروج | I5: اضافى | J5: خصم تأخير | K5: بدل اضافى | L5: الفترة | M5: الشهر | N5: غياب | U5: 1
C6: =IF(B6="","",$C$4) ->  | D6: =IFERROR(VLOOKUP(B6,راتب!$B$6:$L$25,2,0),"") ->  | G6: =IF(F6="","",IF((E6-$G$1)<=$I$2,0,E6-$G$1)) ->  | H6: =IF(F6="","",IF(($I$1-F6)<0,0,$I$1-F6)) ->  | I6: =IF(F6="","",IF((F6-$I$1)<0,0,F6-$I$1)) ->  | J6: =IF(F6<>"",(G6+H6)*24*$G$2,"") ->  | K6: =IF(I6="","",I6*24*$G$3*$G$2) ->  | L6: =IF(B6="","",$C$2) ->  | M6: =IF(B6="","",TEXT(C6,"mmm")) ->  | N6: =IF(E6="غياب",1,"") ->  | P6: غياب | U6: 2
C7: =IF(B7="","",$C$4) ->  | D7: =IFERROR(VLOOKUP(B7,راتب!$B$6:$L$25,2,0),"") ->  | G7: =IF(F7="","",IF((E7-$G$1)<=$I$2,0,E7-$G$1)) ->  | H7: =IF(F7="","",IF(($I$1-F7)<0,0,$I$1-F7)) ->  | I7: =IF(F7="","",IF((F7-$I$1)<0,0,F7-$I$1)) ->  | J7: =IF(F7<>"",(G7+H7)*24*$G$2,"") ->  | K7: =IF(I7="","",I7*24*$G$3*$G$2) ->  | L7: =IF(B7="","",$C$2) ->  | M7: =IF(B7="","",TEXT(C7,"mmm")) ->  | N7: =IF(E7="غياب",1,"") ->  | P7: 08:00:00 | Q7: 17:00:00 | U7: 3
C8: =IF(B8="","",$C$4) ->  | D8: =IFERROR(VLOOKUP(B8,راتب!$B$6:$L$25,2,0),"") ->  | G8: =IF(F8="","",IF((E8-$G$1)<=$I$2,0,E8-$G$1)) ->  | P8: 08:05:00 | Q8: 17:05:00 | U8: 4
C9: =IF(B9="","",$C$4) ->  | D9: =IFERROR(VLOOKUP(B9,راتب!$B$6:$L$25,2,0),"") ->  | G9: =IF(F9="","",IF((E9-$G$1)<=$I$2,0,E9-$G$1)) ->  | P9: 08:10:00 | Q9: 17:10:00 | U9: 5
D10: =IFERROR(VLOOKUP(B10,راتب!$B$6:$L$25,2,0),"") ->  | P10: 08:15:00 | Q10: 17:15:00 | U10: 6
D11: =IFERROR(VLOOKUP(B11,راتب!$B$6:$L$25,2,0),"") ->  | G11: =IF(F11="","",IF((E11-$G$1)<=$I$2,0,E11-$G$1)) ->  | L11: =IF(B11="","",$C$2) ->  | P11: 08:20:00 | Q11: 17:20:00 | U11: 7
D12: =IFERROR(VLOOKUP(B12,راتب!$B$6:$L$25,2,0),"") ->  | P12: 08:25:00 | Q12: 17:25:00 | U12: 8
D13: =IFERROR(VLOOKUP(B13,راتب!$B$6:$L$25,2,0),"") ->  | P13: 08:30:00 | Q13: 17:30:00 | U13: 9
D14: =IFERROR(VLOOKUP(B14,راتب!$B$6:$L$25,2,0),"") ->  | P14: 08:35:00 | Q14: 17:35:00 | U14: 10
C15: =IF(B15="","",$C$4) ->  | D15: =IFERROR(VLOOKUP(B15,راتب!$B$6:$L$25,2,0),"") ->  | P15: 08:40:00 | Q15: 17:40:00 | U15: 11
C16: =IF(B16="","",$C$4) ->  | D16: =IFERROR(VLOOKUP(B16,راتب!$B$6:$L$25,2,0),"") ->  | P16: 08:45:00 | Q16: 17:45:00 | U16: 12
D17: =IFERROR(VLOOKUP(B17,راتب!$B$6:$L$25,2,0),"") ->  | P17: 08:50:00 | Q17: 17:50:00 | U17: 13
D18: =IFERROR(VLOOKUP(B18,راتب!$B$6:$L$25,2,0),"") ->  | P18: 08:55:00 | Q18: 17:55:00 | U18: 14
D19: =IFERROR(VLOOKUP(B19,راتب!$B$6:$L$25,2,0),"") ->  | P19: 09:00:00 | Q19: 18:00:00 | U19: 15
D20: =IFERROR(VLOOKUP(B20,راتب!$B$6:$L$25,2,0),"") ->  | P20: 09:05:00 | Q20: 18:05:00 | U20: 16
D21: =IFERROR(VLOOKUP(B21,راتب!$B$6:$L$25,2,0),"") ->  | P21: 09:10:00 | Q21: 18:10:00 | U21: 17
D22: =IFERROR(VLOOKUP(B22,راتب!$B$6:$L$25,2,0),"") ->  | P22: 09:15:00 | Q22: 18:15:00 | U22: 18
D23: =IFERROR(VLOOKUP(B23,راتب!$B$6:$L$25,2,0),"") ->  | P23: 09:20:00 | Q23: 18:20:00 | U23: 19
D24: =IFERROR(VLOOKUP(B24,راتب!$B$6:$L$25,2,0),"") ->  | P24: 09:25:00 | Q24: 18:25:00 | U24: 20
D25: =IFERROR(VLOOKUP(B25,راتب!$B$6:$L$25,2,0),"") ->  | P25: 09:30:00 | Q25: 18:30:00 | U25: 21
P26: 09:35:00 | Q26: 18:35:00 | U26: 22
P27: 09:40:00 | Q27: 18:40:00 | U27: 23
P28: 09:45:00 | Q28: 18:45:00 | U28: 24
P29: 09:50:00 | Q29: 18:50:00 | U29: 25
P30: 09:55:00 | Q30: 18:55:00 | U30: 26
P31: 10:00:00 | Q31: 19:00:00 | U31: 27
P32: 10:05:00 | Q32: 19:05:00 | U32: 28
P33: 10:10:00 | Q33: 19:10:00 | U33: 29
P34: 10:15:00 | U34: 30
P35: 10:20:00 | U35: 31
P36: 10:25:00 | U36: 32
P37: 10:30:00 | U37: 33
P38: 10:35:00 | U38: 34
P39: 10:40:00 | U39: 35
P40: 10:45:00 | U40: 36
P41: 10:50:00 | U41: 37
P42: 10:55:00 | U42: 38
P43: 11:00:00 | U43: 39
P44: 11:05:00 | U44: 40
P45: 11:10:00 | U45: 41
P46: 11:15:00 | U46: 42
P47: 11:20:00 | U47: 43
P48: 11:25:00 | U48: 44
P49: 11:30:00 | U49: 45
P50: 11:35:00 | U50: 46
P51: 11:40:00 | U51: 47
P52: 11:45:00 | U52: 48
P53: 11:50:00 | U53: 49
P54: 11:55:00 | U54: 50
P55: 12:00:00 | U55: 51
P56: 12:05:00 | U56: 52
P57: 12:10:00 | U57: 53
P58: 12:15:00 | U58: 54
P59: 12:20:00 | U59: 55
P60: 12:25:00 | U60: 56
P61: 12:30:00 | U61: 57
P62: 12:35:00 | U62: 58
P63: 12:40:00 | U63: 59
P64: 12:45:00 | U64: 60
P65: 12:50:00 | U65: 61
P66: 12:55:00 | U66: 62
P67: 13:00:00 | U67: 63
P68: 13:05:00 | U68: 64
P69: 13:10:00 | U69: 65
P70: 13:15:00 | U70: 66
C71: =IF(B71="","",$C$4) ->  | P71: 13:20:00 | U71: 67
P72: 13:25:00 | U72: 68
P73: 13:30:00 | U73: 69
P74: 13:35:00 | U74: 70
P75: 13:40:00 | U75: 71
P76: 13:45:00 | U76: 72
P77: 13:50:00 | U77: 73
P78: 13:55:00 | U78: 74
P79: 14:00:00 | U79: 75
P80: 14:05:00 | U80: 76
P81: 14:10:00 | U81: 77
P82: 14:15:00 | U82: 78
P83: 14:20:00 | U83: 79
P84: 14:25:00 | U84: 80
P85: 14:30:00 | U85: 81
P86: 14:35:00 | U86: 82
P87: 14:40:00 | U87: 83
P88: 14:45:00 | U88: 84
P89: 14:50:00 | U89: 85
P90: 14:55:00 | U90: 86
P91: 15:00:00 | U91: 87
P92: 15:05:00 | U92: 88
P93: 15:10:00 | U93: 89
P94: 15:15:00 | U94: 90
P95: 15:20:00 | U95: 91
P96: 15:25:00 | U96: 92
P97: 15:30:00 | U97: 93
P98: 15:35:00 | U98: 94
P99: 15:40:00 | U99: 95
P100: 15:45:00 | U100: 96
P101: 15:50:00 | U101: 97
P102: 15:55:00 | U102: 98
P103: 16:00:00 | U103: 99
P104: 16:05:00 | U104: 100
P105: 16:10:00
P106: 16:15:00
P107: 16:20:00
P108: 16:25:00
P109: 16:30:00
P110: 16:35:00
P111: 16:40:00
P112: 16:45:00
P113: 16:50:00
P114: 16:55:00
P115: 17:00:00
P116: 17:05:00
P117: 17:10:00
P118: 17:15:00
P119: 17:20:00
P120: 17:25:00
P121: 17:30:00
P122: 17:35:00
P123: 17:40:00
P124: 17:45:00
P125: 17:50:00
P126: 17:55:00
P127: 18:00:00
P128: 18:05:00
P129: 18:10:00
P130: 18:15:00
P131: 18:20:00
P132: 18:25:00
P133: 18:30:00
P134: 18:35:00
P135: 18:40:00
P136: 18:45:00
P137: 18:50:00
P138: 18:55:00
P139: 19:00:00
P140: 19:05:00
P141: 19:10:00
P142: 19:15:00
P143: 19:20:00
P144: 19:25:00
P145: 19:30:00
P146: 19:35:00
P147: 19:40:00
P148: 19:45:00
P149: 19:50:00
P150: 19:55:00
P151: 20:00:00
P152: 20:05:00
P153: 20:10:00
P154: 20:15:00
P155: 20:20:00
P156: 20:25:00
P157: 20:30:00
P158: 20:35:00
P159: 20:40:00
P160: 20:45:00
P161: 20:50:00
P162: 20:55:00
P163: 21:00:00
P164: 21:05:00
P165: 21:10:00
P166: 21:15:00
P167: 21:20:00
P168: 21:25:00
P169: 21:30:00
P170: 21:35:00
P171: 21:40:00
P172: 21:45:00
P173: 21:50:00
P174: 21:55:00
P175: 22:00:00
P176: 22:05:00
P177: 22:10:00
P178: 22:15:00
P179: 22:20:00
P180: 22:25:00
P181: 22:30:00
P182: 22:35:00
P183: 22:40:00
P184: 22:45:00
P185: 22:50:00
P186: 22:55:00
P187: 23:00:00
P188: 23:05:00
P189: 23:10:00
P190: 23:15:00
P191: 23:20:00
P192: 23:25:00
P193: 23:30:00
P194: 23:35:00
P195: 23:40:00
P196: 23:45:00
P197: 23:50:00
P198: 23:55:00
P199: 1
P200: 1.003472222
... 23 more rows

Sheet مرحل حضور
B8: مسلسل | C8: الكود | D8: التاريخ | E8: الاسم | F8: ساعة الحضور | G8: ساعة الانصراف | H8: تأخير | I8: اذن خروج | J8: اضافى | K8: خصم تاخير | L8: بدل اضافى | M8: الفترة | N8: الشهر | O8: غياب
B9: 1
B10: 2
B11: 1
B12: 2
B13: 3
B14: 1
B15: 2
B16: 3
B17: 1
B18: 1
B19: 1
B20: 1

Sheet ورقة2
E3: مرتب عامل
C5: الاسم
C6: عوض17
B8: كود العامل | C8: الاسم | D8: الاساسى | E8: حاقز او مكافآت | F8: اضافى | G8: سلف | H8: خصومات اخرى | I8: تأخير | J8: خصم غياب | K8: جملة خصم | L8: الصافى
B9: 170 | C9: عوض17 | D9: 1000 | E9: 0 | F9: 0 | G9: 0 | H9: 0 | I9: 0 | J9: 0 | K9: 0 | L9: 1000
